{"text_format":"1","workbook":"xlsx","n_sheets":20,"sheets":["Cover Page","Contents","Facility Info","Operational Data","Operational Summary","Perf. Form 1","Energy Form 1","Permit Compliance","Improvements","Public Liasion","Residue Quality ","Water","Air (periodic)","Air (CEMS)","HCl","SO2","NOx","TOC","Particulates","CO 95% 10 min"],"not_rendered":{"charts":6,"images":2,"macros":1,"external_links":0,"defined_names":20,"comments":0,"pivot_tables":0},"unopened":[],"bounds":{"document_bytes":16777216,"sheet_cells":100000,"rows_first":2000,"rows_last":500,"rows_between":2000,"halvings":0,"cell_chars":16384,"cell_head_chars":4096},"cells_cut":0,"cells_raw":0,"read":"whole","date_system":"1900"}

{"sheet":"Cover Page","index":0,"n_rows":54,"n_cols":14,"rows_kept":54,"cut":false,"hidden":false,"merged":[[13,13,18,15],[34,1,34,8],[0,3,5,6],[7,1,23,8],[28,1,28,8],[30,1,30,8],[32,1,32,8],[49,2,49,3],[49,6,49,8],[53,2,53,3],[36,1,36,8],[40,2,40,8],[42,2,42,4],[44,2,44,4],[46,2,46,3],[46,6,46,8],[47,2,47,3],[47,6,47,8]]}
[null,null,null,"Add company logo"]
[null,null,null,null,null,null,null,null,null,null,null,null,null,"Version 20.1 "]
[]
[]
[]
[]
[]
[null,"Add photo"]
[]
[]
[]
[]
[null,null,null,null,null,null,null,null,null,null,null,null,null,"Notes:"]
[null,null,null,null,null,null,null,null,null,null,null,null,null,"This template may require adjustments by individual operators to meet specific reporting requirements as defined in the site Permit(s)"]
[]
[]
[]
[]
[]
[]
[]
[]
[]
[]
[]
[]
[]
[]
[null,"Annual Performance Report 2021"]
[]
[null,"Permit EPR/WP3438HZ"]
[]
[null,"SUEZ Suffolk Energy from Waste Facility"]
[]
[]
[]
[null,"SUEZ Recycling and Recovery"]
[]
[null,"Year:",2021]
[]
[null,"Address:","Lodge Lane, Great Blakenham, Ipswich, Suffolk, IP6 0JE"]
[]
[null,"Tel: ","01473 839149"]
[]
[null,"Email: ","John.Tatton@Suez.com"]
[]
[null,"Prepared by:","Richard Watkins",null,null,"Position:","EIR Manager"]
[null,null,"Robert Taylor",null,null,null,"Technical Plant Engineer"]
[]
[null,"Approved by:","John Tatton",null,null,"Position:","EfW Plant Manager"]
[]
[null,"Version:",1]
[]
[null,"Issue Date:","2022-01-26"]

{"sheet":"Contents","index":1,"n_rows":44,"n_cols":11,"rows_kept":44,"cut":false,"hidden":false,"merged":[[4,10,7,14],[8,1,8,6],[3,1,3,6],[4,1,4,6],[5,1,5,6],[6,1,6,6],[7,1,7,6],[20,1,20,6],[9,1,9,6],[10,1,10,6],[11,1,11,6],[12,1,12,6],[13,1,13,6],[14,1,14,6],[15,1,15,6],[16,1,16,6],[17,1,17,6],[18,1,18,6],[19,1,19,6],[35,1,35,6],[21,1,21,6],[22,1,22,6],[23,1,23,6],[26,1,26,6],[27,1,27,6],[28,1,28,6],[29,1,29,6],[30,1,30,6],[31,1,31,6],[34,1,34,6],[43,0,46,9],[36,1,36,6],[37,1,37,6],[38,1,38,6],[39,1,39,6],[40,1,40,6],[41,1,41,6]]}
[{"$f":"+'Cover Page'!$B$29","v":"Annual Performance Report 2021"},null,null,null,{"$f":"+'Cover Page'!$B$33","v":"SUEZ Suffolk Energy from Waste Facility"}]
[]
["Contents",null,null,null,null,null,null,null,null,null,"Notes:"]
["Section","Subject",null,null,null,null,null,"Page ",null,null,"Section references and Page nos. to be inserted"]
[null,"Facility Information",null,null,null,null,null,null,null,null,"Sections and Subjects may require adjustment by individual operators to meet specific reporting requirements as defined in the sites Permit(s)"]
[null,"Operational Summary"]
[null,"Operational Data"]
[null,"Performance Form 1"]
[null,"Energy Form 1"]
[null,"Permit Compliance"]
[null,"Improvements"]
[null,"Public Liasion"]
[null,"Residue Quality - Optional"]
[null,"Emissions to Water"]
[null,"Emissions to Air (periodically monitored)"]
[null,"Emissions to Air (continuously monitored)"]
[null,"Hydrogen Chloride emissions"]
[null,"Sulphur Dioxdie emsissions"]
[null,"Oxides of Notrigen emissions"]
[null,"Total Organic Carbon emissions"]
[null,"Particulate Matter emissions"]
[null,"Carbon Monoxide emissions"]
[]
[]
[]
["Version Control"]
["Section","Information",null,null,null,null,null,"Date"]
[]
[]
[]
[]
[]
[]
["Distribution"]
["Copy","Name, Role",null,null,null,null,null,"No."]
[1,"SUEZ Operations Team"]
[2,"SUEZ EIR Team"]
[3,"Environment Agency"]
[]
[]
[]
[]
[]
["This report is required under the Industrial Emissions Directive’s Article 55(2) requirements on reporting and public information on waste incineration plants and co-incineration plants, which require the operator to produce an annual report on the functioning and monitoring of the plant and make it available to the public. "]

{"sheet":"Facility Info","index":2,"n_rows":22,"n_cols":11,"rows_kept":22,"cut":false,"hidden":false,"merged":[[4,0,17,8],[21,0,53,8],[4,10,13,13],[21,10,30,13]]}
[{"$f":"+'Cover Page'!$B$29","v":"Annual Performance Report 2021"},null,null,null,{"$f":"+'Cover Page'!$B$33","v":"SUEZ Suffolk Energy from Waste Facility"}]
[]
["Plant Description and Design",null,null,null,null,null,null,null,null,null,"Notes:"]
[]
["This non-hazardous waste incinerator operates 24/7 across two furnace lines and can receive up to 295,000 tonnes of municipal waste and commercial/Industrial waste per annum. The heat produced by waste incineration is used to raise superheated steam which generates approximately 179,000 MWh/annum of electricity.\n\nActivities associated with the incineration are receipt and storage of municipal waste and commercial/industrial waste, production of steam and electricity, abatement of flue gas and handling of Incinerator Bottom Ash (IBA) and Air Pollution Control Residue (APCR).\n\nSuffolk EfW commissioning finished on 1st December 2014, when the plant was handed over from the EPC\ncontractor to SUEZ UK. Permit conditions have applied since this date. The data included in this report corresponds to the following period: 1st January 2021 to 31st December 2021.",null,null,null,null,null,null,null,null,null,"Include summary of plant design, design capacity, no. of combustion lines, electrical and heat capacity and any other general information that descibes the facility, its location and purpose "]
[]
[]
[]
[]
[]
[]
[]
[]
[]
[]
[]
[]
[]
[]
["Summary of Operational Processes and Procedures"]
[]
["RECEPTION HALL & BUNKER\nIncoming waste is delivered to site by refuse collection trucks. It is then checked in, weighed and delivered\ninto the reception hall.  A large reception hall allows for refuse collection trucks to manoeuvre and tip waste safely. Air needed for combustion is drawn into the furnace from here so that negative pressure is maintained in order to avoid odour and dust escaping the building.  Waste vehicles reverse to a wheel stop and tip their loads into a large concrete bunker. Mixing of waste occurs as the cranes driver sorts the waste looking for unsuitable material to be removed, and to improve the homogeneity of the incinerator feedstock.\n\nCONTROL ROOM\nThe plant’s control room centralises the operation of all equipment, including the grab cranes used to mix and load waste into a hopper that feeds the furnace. All on-site functions are monitored automatically and manually.  Its systems verify in real time that equipment is functioning properly, continuously monitor the combustion gas, and maximise the efficiency of the entire EfW process.\n\nGRATE AND BOILER\nWaste is lifted into the charging hoppers by the crane. From here it falls into the furnace-charging chute and then is introduced onto the grate system by hydraulic feeders for incineration. An auxiliary burner can be used to help keeping the temperature above 850°C if required. The thermal energy released from the burning is used to convert water to super-heated steam along a boiler composed of 6 vertical passes. At high pressure, this steam drives a turbine to generate electricity.\n\nELECTRICITY GENERATION\nElectricity is generated at 11kv, with an electric production of 203,863 MWh/annum and exporting 180,346 MWh/annum to the national grid.\n\nINCINERATOR BOTTOM ASH (IBA)\nAsh left on the grate after incineration is carried by conveyor, after quenching, to the IBA processing facility.  Up to 65,000 tonne of IBA is processed on site by the removal of ferrous and non-ferrous metal, stabilised and separated into fraction sizes of IBA prior to the export from site of the processed IBA and metals for re-use.\n\nEMISSION CONTROL & AIR POLLUTION CONTROL RESIDUE (APCR)\nThe gases from the furnace are subject to a rigorous cleaning process involving urea as selective non-catalytic reduction (SNCR), lime and active carbon injections. This removes oxides of nitrogen, acidic gases, dioxins, and heavy metals from the gas stream.  The cleaned gas passes through fine-fabric bag filters to remove solid particles before it is emitted through the stack. The resultant APCR residue, or fly-ash, contains particles from the incineration process, lime used in the flue gas treatment, salts and carbon dust. It is stored in a sealed silo until it is tankered away for recycling.\n\nEMISSIONS MONITORING\nAs they pass through the stack, the residual flue gases from the process are continuously monitored before release. This data is relayed automatically to the control room.",null,null,null,null,null,null,null,null,null,"Include summary of key processes and procedures such as (but not limited to); waste reception, control rooms, grate, bed and bolier, energy & heat  generation, cooling systems, residue management, emission controls, health and safety systems, maintenance"]

{"sheet":"Operational Data","index":3,"n_rows":64,"n_cols":11,"rows_kept":64,"cut":false,"hidden":false,"merged":[[3,1,3,2],[7,1,19,1],[22,1,25,1],[27,1,28,1],[51,0,55,0],[5,10,6,10],[7,10,18,10],[32,1,37,1],[29,2,29,5],[29,6,29,7]]}
[{"$f":"+'Cover Page'!$B$29","v":"Annual Performance Report 2021"},null,null,null,{"$f":"+'Cover Page'!$B$33","v":"SUEZ Suffolk Energy from Waste Facility"}]
[]
["Operational Data",null,null,null,null,null,null,null,null,null,"Notes:"]
["Plant Size",295000,null,"tonnes pa",{"$f":"160*1000/3600*2","v":88.888888888888886},"MWth",26,"MWe",null,null,"* - RDF to include SRF "]
["No. of combustion lines",2,null,"No. of Turbines:",null,1,null,null,null,null,"** - CHP plants only"]
[null,null,null,null,null,null,null,null,null,null,"2020 updates include;  heat in MWh, water in Litres, NCV in MJ/kg"]
["Waste types received","Unit","Q1","Q2","Q3","Q4","Year Total","%"]
["Household / Local Authority","tonnes",65382,58333,56269,53464,{"$f":"SUM(C8:F8)","v":233448},{"$f":"IF(G8>0,G8/$G$18,\"-\")","v":0.80055142330998019},null,null,"Availabiity Definition: 'the availability of a line is to be calculated by the number of hours the line reported Continuously Monitored emission levels to the Regulator through the calendar year divided by the total number of hours in that year. \nThe overall plant availability is calculated as the Mean of all lines in the plant. For clarity this includes periods of Other Than Normal Operating Conditions (OTNOC) and abnormal operation.'  \n\nRationale: The primary function of an Energy from Waste facility is the disposal of waste. It follows therefore that the availability of a plant is determined by the period of time a facility spends undertaking this activity."]
["Commercial & Industrial ",null,11914,10172,12927,19157,{"$f":"SUM(C9:F9)","v":54170},0.18576244217428131]
["Hazardous ",null," -   "," -   "," -   "," -   ",0,"-"]
["Clinical",null,1000,650,1108,1233,3991,1.368613451573854E-2]
["Waste wood (biomass) ",null,null,null,null,null,0,"-"]
["Refuse Derived Fuel * - H'hold/LA",null,null,null,null,null,{"$f":"SUM(C13:F13)","v":0},"-"]
["Refuse Derived Fuel *  - C&I",null,null,null,null,null,0,"-"]
["Other [Please specify]",null,null,null,null,null,0,"-"]
["Other [Please specify]"]
["Other [Please specify]"]
["Total waste combusted",null,{"$f":"SUM(C8:C17)","v":78296},{"$f":"SUM(D8:D17)","v":69155},{"$f":"SUM(E8:E17)","v":70304},{"$f":"SUM(F8:F17)","v":73854},{"$f":"SUM(G8:G17)","v":291609},{"$f":"IF(G18>0,G18/$G$18,\"-\")","v":1}]
["Rejected Waste ",null,null,null,null,11.54,{"$f":"SUM(C19:F19)","v":11.54},{"$f":"IF(G19>0,G19/$G$18,\"-\")","v":3.9573538539619829E-5}]
["Unprocessed waste transferred out",null,null,null,null,null,{"$f":"SUM(C20:F20)","v":0},{"$f":"IF(G20>0,G20/$G$18,\"-\")","v":"-"}]
[]
["Energy Useage / Export","Unit","Q1","Q2","Q3","Q4","Year Total","KWh/te"]
["Power Generated","MWh",53265.751200000013,49097.825303999998,48986.651476965526,52512.436415999997,{"$f":"SUM(C23:F23)","v":203862.66439696553},{"$f":"IF(G23>0,G23*1000/$G$18,\"-\")","v":699.09592775588385}]
["Power Exported",null,47340.6,43241.432999999997,43145.665999999997,46617.908000000003,{"$f":"SUM(C24:F24)","v":180345.60699999999},{"$f":"IF(G24>0,G24*1000/$G$18,\"-\")","v":618.45007184277574}]
["Power Used on site",null,5925.1512000000148,5856.3923040000009,5840.9854769655285,5894.5284159999937,{"$f":"SUM(C25:F25)","v":23517.057396965538},80.645855913108093]
["Power Imported",null,13.102,3.081,128.19999999999999,77.682999999999993,222.06599999999997,0.7615197061819079]
["Parasitic Load","%",{"$f":"IF(C23>0,1-C24/(C23+C26),\"-\")","v":0.11145610018497942},{"$f":"IF(D23>0,1-D24/(D23+D26),\"-\")","v":0.11933533910193139},{"$f":"IF(E23>0,1-E24/(E23+E26),\"-\")","v":0.12153524438051144},{"$f":"IF(F23>0,1-F24/(F23+F26),\"-\")","v":0.11356147280743778},{"$f":"IF(G23>0,1-G24/(G23+G26),\"-\")","v":0.11631993903115889}]
["Thermal Energy Produced **","MWh",null,null,null,null,{"$f":"SUM(C28:F28)","v":0},"-"]
["Thermal Energy Exported **",null,null,null,null,null,0,"-"]
["R1 value",null,0.82,null,null,null,"Operational"]
[]
["Waste Disposal & Recovery","Unit","Q1","Q2","Q3","Q4","Year Total","% inputs"]
["APC Residues - produced","tonnes",1994.5,1759,1631,1765,{"$f":"SUM(C33:F33)","v":7149.5},{"$f":"IF(G33>0,G33/$G$18,\"-\")","v":2.4517418872531369E-2}]
["IBA - produced",null,14572.039999999999,11230.82,17357.22,10413.719999999999,53573.8,{"$f":"IF(G34>0,G34/$G$18,\"-\")","v":0.18371792365804898}]
["Metals recycling",null,3022.66,2641.02,2670.12,2389.2399999999998,{"$f":"SUM(C35:F35)","v":10723.039999999999},{"$f":"IF(G35>0,G35/$G$18,\"-\")","v":3.6771978916974438E-2}]
["Other",null,0,0,0,0,{"$f":"SUM(C36:F36)","v":0},{"$f":"IF(G36>0,G36/$G$18,\"-\")","v":"-"}]
["Other",null,0,0,0,0,0,{"$f":"IF(G37>0,G37/$G$18,\"-\")","v":"-"}]
["Other",null,0,0,0,0,0,{"$f":"IF(G38>0,G38/$G$18,\"-\")","v":"-"}]
[]
["Raw Material Usage","Unit","Q1","Q2","Q3","Q4","Year Total","kg or Ltr /te"]
["Mains Water","ltrs",10628.119999999999,10566.06,9184.6899999999987,8752.73,{"$f":"SUM(C41:F41)","v":39131.599999999999},{"$f":"IF(G41>0,G41/$G$18,\"-\")","v":0.13419201739315315}]
["Other Water","ltrs",null,null,null,null,0,{"$f":"IF(G42>0,G42/$G$18,\"-\")","v":"-"}]
["Ammonia","kgs",null,null,null,null,0,{"$f":"IF(G43>0,G43/$G$18,\"-\")","v":"-"}]
["Urea","kgs",174690.62090399998,184925.01820800002,182758.49985723078,166538.03424000001,{"$f":"SUM(C44:F44)","v":708912.17320923088},{"$f":"IF(G44>0,G44/$G$18,\"-\")","v":2.4310366731110182}]
["Activated Carbon","kgs",22420.217709600001,20561,23058,17734,83773.217709599994,{"$f":"IF(G45>0,G45/$G$18,\"-\")","v":0.28727925993230657}]
["Lime / hydrated lime","kgs",738924.06510947249,505097,520285,378142,2142448.0651094727,7.3469888278807334]
["Fuel oil","ltrs",64206.089085156003,83704.555141029603,45005.530308541202,83531.095223802244,276447.26975852903,0.94800664505735088]
["Gas","cf",0,0,0,0,0]
["Other",null,0,0,0,0,0]
[]
["Summary ","Line/Unit","Q1","Q2","Q3","Q4","Year Total",null,null,"Hrs in year "]
["Availability of waste combustion by line, hrs",1,2047.8130000000001,1998.3,1810.7325000000001,2176.9960000000001,{"$f":"SUM(C52:F52)","v":8033.8415000000005},{"$f":"G52/$J$52","v":0.91710519406392699},null,8760]
[null,2,2158.7799999999997,1962.951,2062.9376000000002,2006.2,8190.8685999999998,{"$f":"G53/$J$52","v":0.9350306621004566}]
[null,3,null,null,null,null,0]
[null,4,null,null,null,null,0]
[null,5,null,null,null,null,{"$f":"SUM(C56:F56)","v":0}]
["Overall Availability, mean avg. of all lines, hrs",null,null,null,null,null,{"$f":"AVERAGE(G52:G53)","v":8112.3550500000001},{"$f":"G57/$J$52","v":0.92606792808219185}]
["Hours of turbine operations, hrs",1,2154.9949999999999,2183.4080000000004,2045.2670000000001,2155.9259999999999,8539.5959999999995,{"$f":"G58/$J$52","v":0.97483972602739721}]
["Hours of turbine operations, hrs",2,null,null,null,null,0]
["Hours of heat / steam export",null,null,null,null,null,0,{"$f":"IF(B60>0,G59/J52,\"n/a\")","v":"n/a"}]
["Net Calorific Value of waste","MJ/kg",8777.0076423844966,8903.8970429791007,9058.017258127933,8932.1919553869375,null,"-"]
["Abnormal Events","qty.",null,null,null,null,0,{"$f":"IF(G62>0,\"yes\",\"no\")","v":"no"}]
["Abnormal operation","hours",null,null,null,null,0,{"$f":"+(G63)/J52","v":0}]
["Permit Breaches","qty.",null,1,null,2,3,{"$f":"IF(G64>0,\"yes\",\"no\")","v":"yes"}]

{"sheet":"Operational Summary","index":4,"n_rows":31,"n_cols":11,"rows_kept":31,"cut":false,"hidden":false,"merged":[[4,0,26,8],[30,0,51,8],[4,10,13,13],[30,10,39,13]]}
[{"$f":"+'Cover Page'!$B$29","v":"Annual Performance Report 2021"},null,null,null,{"$f":"+'Cover Page'!$B$33","v":"SUEZ Suffolk Energy from Waste Facility"}]
[]
["Summary of Plant Operations and Maintenance during the reporting year",null,null,null,null,null,null,null,null,null,"Notes:"]
[]
["Despite the ongoing pandemic related challenges of 2021 Suffolk EFW has had a very good year.  The year has been dominated by steady running, which has seen the site demonstrate exceptional levels of availability.  The site successfully achieved both its scheduled outages where some work was undertaken on the refractory areas of the furnace with further replacements scheduled in 2022.  Boiler thickness checks demonstrated that the boiler tubes are at an acceptable level but indicated that two banks of superheaters will be replaced in 2022.  Standard inspections of the bag filters and flue gas treatment systems have resulted in only minor, routine servicing.\n\nThe urea handling systems continue to operate well. \n\n",null,null,null,null,null,null,null,null,null,"Include summary of key operational and/or mainteanance activity undertaken in the year, such as any major component upgrades and/or replacements "]
[]
[]
[]
[]
[]
[]
[]
[]
[]
[]
[]
[]
[]
[]
[]
[]
[]
[]
[]
[]
[]
[]
[]
["Summary of Residue Handling for the reporting year"]
[]
["There were no noteable residue handling issues on site over 2021. The systems were fully maintained and remained operational throughout.",null,null,null,null,null,null,null,null,null,"Include in here a summary of residue handling regimes and destinations "]

{"sheet":"Perf. Form 1","index":5,"n_rows":54,"n_cols":10,"rows_kept":54,"cut":false,"hidden":false,"merged":[[53,7,53,8],[9,0,9,9],[10,0,10,1],[10,2,10,3],[10,4,10,5],[10,6,10,7],[10,8,10,9],[2,0,2,4],[2,6,2,8],[3,1,3,4],[5,3,5,4],[5,6,5,7],[8,0,8,1],[8,2,8,3],[8,4,8,5],[8,6,8,7],[8,8,8,9],[11,0,11,1],[11,2,11,3],[11,4,11,5],[11,6,11,7],[11,8,11,9],[12,0,12,1],[12,2,12,3],[12,4,12,5],[12,6,12,7],[12,8,12,9],[15,0,15,1],[15,2,15,3],[15,4,15,5],[15,6,15,7],[15,8,15,9],[16,0,16,9],[13,0,13,1],[13,2,13,3],[13,4,13,5],[13,6,13,7],[13,8,13,9],[14,0,14,3],[14,4,14,5],[14,6,14,7],[14,8,14,9],[17,0,17,1],[17,2,17,3],[17,4,17,5],[17,6,17,7],[17,8,17,9],[18,0,18,1],[18,2,18,3],[18,4,18,5],[18,6,18,7],[18,8,18,9],[19,0,19,1],[19,2,19,3],[19,4,19,5],[19,6,19,7],[19,8,19,9],[20,0,20,1],[20,2,20,3],[20,4,20,5],[20,6,20,7],[20,8,20,9],[21,0,21,1],[21,2,21,3],[21,4,21,5],[21,6,21,7],[21,8,21,9],[22,0,22,3],[22,4,22,5],[22,6,22,7],[22,8,22,9],[31,0,31,3],[31,7,31,8],[32,0,32,3],[32,4,32,5],[32,7,32,8],[33,0,33,3],[33,4,33,5],[33,7,33,8],[23,0,23,3],[23,4,23,5],[23,6,23,7],[23,8,23,9],[25,0,25,9],[26,0,28,9],[36,0,36,3],[36,4,36,5],[36,7,36,8],[37,0,37,3],[37,4,37,5],[37,7,37,8],[34,0,34,3],[34,4,34,5],[34,7,34,8],[35,0,35,3],[35,4,35,5],[35,7,35,8],[47,0,47,1],[49,0,49,9],[50,0,51,9],[38,0,38,9],[39,0,40,9],[43,0,43,1],[43,2,43,9],[45,0,45,1],[46,0,46,1]]}
[{"$f":"+'Cover Page'!C39","v":2021}," Annual Reporting Performance Form 1"]
[]
[{"$f":"+'Cover Page'!B31","v":"Permit EPR/WP3438HZ"},null,null,null,null,"Operator: ",{"$f":"+'Cover Page'!B37","v":"SUEZ Recycling and Recovery"}]
["Facility:",{"$f":"+'Cover Page'!B33:I33","v":"SUEZ Suffolk Energy from Waste Facility"},null,null,null,"Form:","Performance 1"]
[]
["Reporting  Period from: ",null,null,"2021-01-01",null,"to:","2021-12-31"]
[]
[{"$f":"+A1","v":2021},"Annual Reporting of Waste Disposal and Recovery"]
["Waste Description",null,"Disposal Route(s)",null,"Disposal Tonnes",null,"Recovery Tonnes",null,"% / tonne of waste incinerated"]
["1) Hazardous Wastes"]
["APC Residues",null,"D05",null,7149,null,null,null,{"$f":"IF((E11+G11)>0,(E11+G11)/'Operational Data'!$G$18, \"-\")","v":2.4515704247811281E-2}]
["IBA",null,null,null,null,null,null,null,{"$f":"IF((E12+G12)>0,(E12+G12)/'Operational Data'!$G$18, \"-\")","v":"-"}]
[null,null,null,null,null,null,null,null,{"$f":"IF((E13+G13)>0,(E13+G13)/'Operational Data'!$G$18, \"-\")","v":"-"}]
[null,null,null,null,null,null,null,null,{"$f":"IF((E14+G14)>0,(E14+G14)/'Operational Data'!$G$18, \"-\")","v":"-"}]
["Total Hazardous Waste",null,null,null,{"$f":"SUM(E11:F14)","v":7149},null,{"$f":"SUM(G11:H14)","v":0},null,{"$f":"IF((E15+G15)>0,(E15+G15)/'Operational Data'!$G$18, \"-\")","v":2.4515704247811281E-2}]
[]
["2) Non-Hazardous Wastes"]
["IBA",null,"R05",null,null,null,53598,null,{"$f":"IF((E18+G18)>0,(E18+G18)/'Operational Data'!$G$18, \"-\")","v":0.1838009114945012}]
["Ferrous Metal",null,"R04",null,null,null,7320,null,{"$f":"IF((E19+G19)>0,(E19+G19)/'Operational Data'!$G$18, \"-\")","v":2.5102105902081211E-2}]
["Non Ferrous Metal",null,"R04",null,null,null,3383,null,{"$f":"IF((E20+G20)>0,(E20+G20)/'Operational Data'!$G$18, \"-\")","v":1.1601150856112123E-2}]
[null,null,null,null,null,null,null,null,{"$f":"IF((E21+G21)>0,(E21+G21)/'Operational Data'!$G$18, \"-\")","v":"-"}]
[null,null,null,null,null,null,null,null,{"$f":"IF((E22+G22)>0,(E22+G22)/'Operational Data'!$G$18, \"-\")","v":"-"}]
["Total Non-Hazardous Waste",null,null,null,{"$f":"SUM(E18:F22)","v":0},null,{"$f":"SUM(G18:H22)","v":64301},null,{"$f":"IF((E23+G23)>0,(E23+G23)/'Operational Data'!$G$18, \"-\")","v":0.22050416825269453}]
["TOTAL WASTE",null,null,null,{"$f":"+E23+E15","v":7149},null,{"$f":"+G23+G15","v":64301},null,{"$f":"IF((E24+G24)>0,(E24+G24)/'Operational Data'!$G$18, \"-\")","v":0.2450198725005058}]
[]
["Operator’s comments :"]
[]
[]
[]
[]
[{"$f":"+A1","v":2021},"Annual Reporting of Water and Other Raw Material Usage"]
["Raw Material",null,null,null,"Usage",null,"Unit","Specific Useage",null,"Unit"]
["Mains Water",null,null,null,{"$f":"+'Operational Data'!G41","v":39131.599999999999},null,"m3",{"$f":"IF(E33>0,E33/'Operational Data'!$G$18,\"-\")","v":0.13419201739315315},null,"m3/te"]
["Total Water",null,null,null,{"$f":"+'Operational Data'!G42+'Operational Data'!G41","v":39131.599999999999},null,"m3",{"$f":"IF(E34>0,E34/'Operational Data'!$G$18,\"-\")","v":0.13419201739315315},null,"m3/te"]
["Urea / Ammonia",null,null,null,{"$f":"+'Operational Data'!G43","v":0},null,"kg",{"$f":"IF(E35>0,E35/'Operational Data'!$G$18,\"-\")","v":"-"},null,"kg/te"]
["Activated Carbon",null,null,null,{"$f":"+'Operational Data'!G45","v":83773.217709599994},null,"kg",{"$f":"IF(E36>0,E36/'Operational Data'!$G$18,\"-\")","v":0.28727925993230657},null,"kg/te"]
["Lime / hydrated lime / Sodium Bicarb.",null,null,null,{"$f":"+'Operational Data'!G46","v":2142448.0651094727},null,"kg",{"$f":"IF(E37>0,E37/'Operational Data'!$G$18,\"-\")","v":7.3469888278807334},null,"kg/te"]
[]
["Operator’s comments :"]
[]
[]
[]
[{"$f":"+A31","v":2021},"Annual Reporting of other performance indicators "]
["Parameter",null,"Results by Line"]
[null,null,"A1","A2","A3","A4","A5",null,"Turbine 1","Turbine 2"]
["Operating hours for the year, hours",null,8034,8191,null,null,null,null,8540]
["Number of periods of abnormal operation, qty."]
["Cumulative hours of abnormal operation for this year, hours"]
[]
["Operator’s comments :"]
[]
[]
[]
["Signed: ","Richard Watkins",null,null,null,null,"Date:","2021-01-26"]

{"sheet":"Energy Form 1","index":6,"n_rows":29,"n_cols":8,"rows_kept":29,"cut":false,"hidden":false,"merged":[[28,7,28,8],[2,6,2,8],[4,1,4,4],[6,3,6,4],[6,6,6,7],[8,0,8,2],[8,3,8,4],[8,6,8,8],[9,0,9,2],[9,3,9,4],[9,6,9,8],[10,0,10,2],[10,3,10,4],[10,6,10,8],[11,0,11,2],[11,3,11,4],[11,6,11,8],[12,0,12,2],[12,3,12,4],[12,6,12,8],[13,0,13,2],[13,3,13,4],[13,6,13,8],[14,0,14,2],[14,3,14,4],[14,6,14,8],[15,0,15,2],[15,3,15,4],[15,6,15,8],[17,0,17,8],[18,0,24,8]]}
[{"$f":"+'Cover Page'!C39","v":2021}," Annual Reporting of Energy Usage/Export"]
[]
[{"$f":"+'Cover Page'!B31","v":"Permit EPR/WP3438HZ"},null,null,null,null,"Operator: ",{"$f":"+'Cover Page'!B37","v":"SUEZ Recycling and Recovery"}]
[]
["Facility:",{"$f":"+'Cover Page'!B33:I33","v":"SUEZ Suffolk Energy from Waste Facility"},null,null,null,"Form:","Energy 1"]
[]
["Reporting  Period from: ",null,null,{"$f":"+'Perf. Form 1'!D6","v":"2021-01-01"},null,"to:",{"$f":"+'Perf. Form 1'!G6:H6","v":"2021-12-31"}]
[]
["Energy Source",null,null,"Energy Usage",null,"Unit","Specific Useage (KWh/tonne incinerated"]
["Electricity Produced",null,null,{"$f":"+'Operational Data'!G23","v":203862.66439696553},null,"MWh",{"$f":"+'Operational Data'!H23","v":699.09592775588385}]
["Electricity Imported   ",null,null,{"$f":"+'Operational Data'!G26","v":222.06599999999997},null,"MWh",{"$f":"+'Operational Data'!H26","v":0.7615197061819079}]
["Electricity Exported",null,null,{"$f":"+'Operational Data'!G24","v":180345.60699999999},null,"MWh",{"$f":"+'Operational Data'!H24","v":618.45007184277574}]
["Gas Oil",null,null,{"$f":"('Operational Data'!G47/1000)*0.845","v":233.59794294595704},null,"tonnes"]
["Steam/hot water exported",null,null,{"$f":"+'Operational Data'!G29","v":0},null,"GWh",{"$f":"+'Operational Data'!H29","v":"-"}]
[]
[]
[]
["Operator’s comments :"]
[]
[]
[]
[]
[]
[]
[]
[]
[]
[]
["Signed: ","Richard Watkins",null,null,null,null,"Date:","2022-01-26"]

{"sheet":"Permit Compliance","index":7,"n_rows":34,"n_cols":12,"rows_kept":34,"cut":false,"hidden":false,"merged":[[8,11,17,14],[33,4,33,8],[9,0,9,1],[9,2,9,4],[9,5,9,8],[10,0,10,1],[10,2,10,4],[10,5,10,8],[11,0,11,1],[11,2,11,4],[11,5,11,8],[12,0,12,1],[12,2,12,4],[12,5,12,8],[13,0,13,1],[13,2,13,4],[7,0,7,1],[7,2,7,8],[8,0,8,1],[8,2,8,4],[8,5,8,8],[13,5,13,8],[14,0,14,1],[14,2,14,4],[14,5,14,8],[15,0,15,1],[16,2,16,4],[16,5,16,8],[15,2,15,4],[15,5,15,8],[16,0,16,1],[19,1,19,3],[19,4,19,6],[19,7,19,9],[20,1,20,3],[20,4,20,6],[20,7,20,9],[24,7,24,9],[21,1,21,3],[21,4,21,6],[21,7,21,9],[22,1,22,3],[22,4,22,6],[22,7,22,9],[32,1,32,3],[32,4,32,6],[32,7,32,9],[29,1,29,3],[29,4,29,6],[29,7,29,9],[30,1,30,3],[30,4,30,6],[30,7,30,9],[26,0,26,10],[18,0,18,10],[31,1,31,3],[31,4,31,6],[31,7,31,9],[27,1,27,3],[27,4,27,6],[27,7,27,9],[28,1,28,3],[28,4,28,6],[28,7,28,9],[23,1,23,3],[23,4,23,6],[23,7,23,9],[24,1,24,3],[24,4,24,6]]}
[{"$f":"+'Cover Page'!$B$29","v":"Annual Performance Report 2021"},null,null,null,{"$f":"+'Cover Page'!$B$33","v":"SUEZ Suffolk Energy from Waste Facility"}]
[]
["Summary of Permit Compliance"]
[]
["Compliance with permit limits for continuously monitored pollutants"]
[]
["The plant met its emission limits as shown in the table below:"]
["Substance",null,"Percentage time compliant during operation",null,null,null,null,null,null,null,null,"Notes:"]
[null,null,"Half-hourly limit",null,null,"Daily limit",null,null,null,null,null,"Report to 2 decimal places, i.e. xx.xx%\n\nPlease provide a brief summary of each notification or non-compliance in the table (rather than just referring to notifications that were sent to the Regulator).  \n\n"]
["Particulates",null,1,null,null,1]
["Oxides of nitrogen",null,1,null,null,1]
["Sulphur dioxide",null,0.99990000000000001,null,null,1]
["Carbon monoxide",null,"100.00% (95% of 10-min averages)",null,null,1]
["Total organic carbon",null,0.99990000000000001,null,null,1]
["Hydrogen chloride",null,1,null,null,1]
["Hydrogen fluoride",null,1,null,null,1]
[null,null,1,null,null,1]
[]
["Summary of any notifications or non-compliances under the permit"]
["Date","Summary of notification or non-compliance [including Line/Reference]",null,null,"Reason ",null,null,"Measures taken to prevent reoccurrence"]
["2021-06-03","Line 1 (A1) TOC half hourly ELV breach",null,null,"ID fan trip and disturbed combustion conditions",null,null,"Changes to procedures in relation to plant operation during use of online cleaning systems to prevent excessive ID fan vibration."]
["2021-10-07","Loss of carbon dosing to Line 1 following incorrect installation of feed screw during maintenance outage.",null,null,"Functional tests at plant start up didn’t include a direction of rotation check.",null,null,"Maintenance procedures revised and an emissions assessment report provided by external consultants to assess potential impact."]
["2021-12-23","Line 1 (A1) SO2 half hourly ELV breach",null,null,"High sulphate containing waste stream and difficulty mixing waste due to pit levels during the Christmas period.",null,null,"Inreased use of third party sites waste audits and changes to spread peak waste deliveris more evenly over the working day. Use of lime dosing to reduce SO2 concentrations in flue gas."]
[]
[]
[]
["Summary of any complaints received and actions to taken to resolve them."]
["Date","Summary of complaint [including Line/Reference]",null,null,"Reason *",null,null,"Measures taken to prevent reoccurrence"]
["2021-03-31","Burning smell reported by complainant.",null,null,"Not considered to originate from site",null,null,"No operational issues and odour checks carried out."]
["2021-06-12","Acrid smell of burning report by complainant",null,null,"Not considered to originate from site",null,null,"No issues identified on site and wind direction would not support the issue being site derived."]
["2021-11-14","Specs of black resiude settling on complainants car.",null,null,"Not considered to originate from site",null,null,"CEMS report show dust/particulate emissions within permit limits and very low. EA notified of the complaint."]
[]
[]
[null,null,null,null,"* including whether substantiated by the operator or the EA"]

{"sheet":"Improvements","index":8,"n_rows":39,"n_cols":5,"rows_kept":39,"cut":false,"hidden":false,"merged":[[37,0,37,9],[38,0,47,9],[4,0,4,9],[5,0,13,9],[15,0,15,9],[16,0,24,9],[26,0,26,9],[27,0,35,9]]}
[{"$f":"+'Cover Page'!$B$29","v":"Annual Performance Report 2021"},null,null,null,{"$f":"+'Cover Page'!$B$33","v":"SUEZ Suffolk Energy from Waste Facility"}]
[]
["Summary of Plant Improvements"]
[]
["Summary of any efficiency improvements that have been completed within the year."]
["An improved cleaning regieme of the Air Cooled Condensers has been implemented in order to maximise the electrical output and hence cycle efficiency of the plant."]
[]
[]
[]
[]
[]
[]
[]
[]
[]
["Summary of any permit improvement conditions that have been completed within the year and the resulting environmental benefits."]
["Nil"]
[]
[]
[]
[]
[]
[]
[]
[]
[]
["Summary of any changes to the plant or operating techniques which required a variation to the permit and a summary of the resulting environmental impact."]
["Nil"]
[]
[]
[]
[]
[]
[]
[]
[]
[]
["Summary of any other improvements made to the plant or planned to be made and a summary of the resulting environmental benefits."]
["Nil"]

{"sheet":"Public Liasion","index":9,"n_rows":29,"n_cols":5,"rows_kept":29,"cut":false,"hidden":false,"merged":[[16,0,16,1],[16,2,16,9],[5,0,5,1],[5,2,5,9],[6,0,7,1],[6,2,7,9],[8,0,9,1],[8,2,9,9],[10,0,11,1],[10,2,11,9],[12,0,13,1],[12,2,13,9],[15,0,15,9],[17,0,18,1],[17,2,18,9],[19,0,20,1],[19,2,20,9],[21,0,22,1],[21,2,22,9],[23,0,24,1],[23,2,24,9],[25,0,26,1],[25,2,26,9],[28,0,28,9]]}
[{"$f":"+'Cover Page'!$B$29","v":"Annual Performance Report 2021"},null,null,null,{"$f":"+'Cover Page'!$B$33","v":"SUEZ Suffolk Energy from Waste Facility"}]
[]
["Details of Public & Stakeholder Liasion"]
[]
["Summary of events held during the reporting year."]
["Date",null,"Description"]
["March & July ",null,"Community Liaison Group meetings were held via video conferencing "]
[]
["November ",null,"A Community Liaison Group Meeting was held on site. "]
[]
[]
[]
[]
[]
[]
["List of events planned for next year"]
["Date",null,"Description"]
["March, July & November ",null,"Community Liaison Groups to be held on site (if permitted). Meeting will be held via video conferencing as an alternative. "]
[]
[]
[]
[]
[]
[]
[]
[]
[]
[]
["If you wish to be involved in the public liasion programme, please contact  Oliver Morrall oliver.morrall@suez.com"]

{"sheet":"Residue Quality ","index":10,"n_rows":36,"n_cols":6,"rows_kept":36,"cut":false,"hidden":false,"merged":[[16,0,17,1],[16,2,17,6],[18,0,19,1],[18,2,19,6],[12,0,12,6],[13,0,13,1],[13,2,13,6],[5,0,6,6],[7,0,8,6],[9,0,10,6],[14,0,15,1],[14,2,15,6],[20,0,21,1],[20,2,21,6],[22,0,23,1],[22,2,23,6],[31,3,31,4],[27,2,28,2],[28,3,28,4],[28,5,28,6],[27,3,27,6],[26,0,26,6],[35,0,40,6],[32,3,32,4],[34,0,34,6],[27,0,28,1],[29,0,29,1],[30,0,30,1],[31,0,31,1],[32,0,32,1],[29,3,29,4],[30,3,30,4],[29,5,29,6],[30,5,30,6],[31,5,31,6],[32,5,32,6]]}
[{"$f":"+'Cover Page'!$B$29","v":"Annual Performance Report 2021"},null,null,null,{"$f":"+'Cover Page'!$B$33","v":"SUEZ Suffolk Energy from Waste Facility"}]
[]
["Residue Quality Monitoring Requirements"]
[]
["Summary of monitoring undertaken and compliance"]
["The samples for the quarterly IBA analysis were undertaken on the 12/01/2021, the 14/04/2021, the 20/07/2021 and the 18/10/2021."]
[]
["There were no issues identified by the analysis and all results for TOC were below the permit limit.\nLOI analysis is not required as TOC analysis is provided."]
[]
[]
[]
[]
["Commentary on any specific events"]
["Date & Event",null,"Description"]
[]
[]
[]
[]
[]
[]
[]
[]
[]
[]
[]
[]
["Residue Quality Monitoring Results"]
["Parameter (unit) ",null,"Limit","Normal Operation "]
[null,null,null,"Bottom ash  ",null,"APC Residues"]
["Loss on Ignition (average %)",null,"<5%","N/A"]
["Total Organic Carbon (average %)",null,"<3%",1.24]
["No. of Assessments Undertaken",null,"---",4,null,4]
["No. of Hazardous Results",null,"---",0]
[]
["Comments :"]
["12/01/2021 TOC - 1.26 %\n14/04/2021 TOC - 1.39 %\n20/07/2021 TOC - 1.13 %\n18/10/2021 TOC - 1.18 %"]

{"sheet":"Water","index":11,"n_rows":23,"n_cols":10,"rows_kept":23,"cut":false,"hidden":false,"merged":[[5,0,6,9],[7,0,8,9],[9,0,10,9],[12,0,12,9],[13,0,13,1],[13,2,13,9],[21,0,21,9],[22,0,22,2],[22,3,22,5],[14,0,15,1],[14,2,15,9],[16,0,17,1],[16,2,17,9],[18,0,19,1],[18,2,19,9],[23,0,23,2],[23,3,23,5],[24,0,24,2],[24,3,24,5],[25,0,25,2],[25,3,25,5],[29,0,29,2],[29,3,29,5],[26,0,26,2],[26,3,26,5],[27,0,27,2],[27,3,27,5],[28,0,28,2],[28,3,28,5]]}
[{"$f":"+'Cover Page'!$B$29","v":"Annual Performance Report 2021"},null,null,null,{"$f":"+'Cover Page'!$B$33","v":"SUEZ Suffolk Energy from Waste Facility"}]
[]
["Emissions to Water"]
[]
["Summary of monitoring undertaken and compliance"]
[]
[]
[]
[]
[]
[]
[]
["Commentary on any specific events"]
["Date & Event",null,"Description"]
[]
[]
[]
[]
[]
[]
[]
["Emissions to Water / Sewer"]
["Parameter",null,null,"Monitoring Frequency",null,null,"Limit","Target","Max.","Average"]

{"sheet":"Air (periodic)","index":12,"n_rows":40,"n_cols":13,"rows_kept":40,"cut":false,"hidden":false,"merged":[[5,12,8,15],[9,12,11,15],[8,0,8,9],[5,0,6,9],[11,0,11,1],[12,0,12,1],[11,3,11,4],[12,3,12,4],[9,0,10,1],[9,5,9,9],[9,3,10,4],[9,2,10,2],[16,0,16,1],[17,0,17,1],[18,0,18,1],[13,0,13,1],[14,0,14,1],[15,0,15,1],[39,0,40,9],[25,0,25,1],[26,0,26,1],[22,0,22,1],[23,0,23,1],[37,0,37,1],[27,0,27,1],[28,0,28,1],[29,0,29,1],[30,0,30,1],[31,0,31,1],[32,0,32,1],[37,3,37,4],[29,3,29,4],[30,3,30,4],[36,3,36,4],[38,0,38,9],[19,0,19,1],[20,0,20,1],[21,0,21,1],[34,3,34,4],[35,3,35,4],[33,0,33,1],[34,0,34,1],[35,0,35,1],[36,0,36,1],[24,0,24,1],[32,3,32,4],[13,3,13,4],[14,3,14,4],[15,3,15,4],[16,3,16,4],[17,3,17,4],[18,3,18,4],[27,3,27,4],[33,3,33,4],[19,3,19,4],[20,3,20,4],[21,3,21,4],[22,3,22,4],[23,3,23,4],[24,3,24,4],[31,3,31,4],[25,3,25,4],[26,3,26,4],[28,3,28,4]]}
[{"$f":"+'Cover Page'!$B$29","v":"Annual Performance Report 2021"},null,null,null,{"$f":"+'Cover Page'!$B$33","v":"SUEZ Suffolk Energy from Waste Facility"}]
[]
["Emissions to Air (periodically monitored)"]
[]
["Summary of monitoring undertaken, standards used and compliance",null,null,null,null,null,null,null,null,null,null,null,"Notes:"]
["The periodic emissions testing is carried out bi-annually in accordance with the requirements of the Permit by Element Materials Technology. The scheduled emissions testing visits were carried out during March and September 2021. A laboratory error affected the Dioxin/PCB samples results obtained uring the September visit such that the testing contractor decided not to report these results. A further site visit is planned for the 11th/12th January 2022 to obtain further samples for Dioxin/PCB analysis. ",null,null,null,null,null,null,null,null,null,null,null,"Template may require adjustment for any bespoke monitoring requirements of permit. "]
[]
[]
["Results of emissions to air that are periodically monitored"]
["Substance",null,"Ref. Period","Emission Limit Value",null,"Average",null,null,null,null,null,null,"User to add additional tables as necessary, depending on whether quarterly or bi-annual reporting is required for the compliance year"]
[null,null,null,null,null,"A1","A2","A3","A4","A5"]
["Hydrogen fluoride",null,"1 hr","2 mg/m3",null,3.4000000000000002E-2,3.15E-2]
["Cd and Th and their compounds",null,"6-8hrs","0.05 mg/m3",null,8.7500000000000002E-4,8.8999999999999995E-4]
["Hg and its compounds",null,"6-8hrs","0.05 mg/m3",null,9.6500000000000004E-4,2.0500000000000002E-3]
["Sb, As, Pb, Cr, Co, Cu, Mn, Ni, V and their compounds",null,"6-8hrs","0.5 mg/m3",null,1.7999999999999999E-2,2.6499999999999999E-2]
["Dioxins & Furans (I-TEQ)",null,"6-8hrs","0.1 ng/m3",null,8.0000000000000004E-4,6.3000000000000003E-4,"H1 only"]
["PCBs (WHO-TEQ Humans / Mammals)",null,"6-8hrs","None set ng/m3",null,1.1E-4,1.2999999999999999E-4,"H1 only"]
["PCBs (WHO-TEQ Fish)",null,"6-8hrs","None set ng/m3",null,5.4E-6,6.7000000000000002E-6,"H1 only"]
["PCBs (WHO-TEQ Birds)",null,"6-8hrs","None set ng/m3",null,2.9E-4,3.5E-4,"H1 only"]
["Dioxins & Furans (WHO-TEQ Humans / Mammals)",null,"6-8hrs","None set ng/m3",null,8.4999999999999995E-4,5.6999999999999998E-4,"H1 only"]
["Dioxins & Furans (WHO-TEQ Fish)",null,"6-8hrs","None set ng/m3",null,9.1E-4,6.6E-4,"H1 only"]
["Dioxins & Furans (WHO-TEQ Birds)",null,"6-8hrs","None set ng/m3",null,1.5E-3,1.1999999999999999E-3,"H1 only"]
["Anthanthrene",null,"6-8hrs","None set µg/m3",null,9.5E-4,1.1999999999999999E-3]
["Benzo(a)anthracene",null,"6-8hrs","None set µg/m3",null,9.5E-4,1.1999999999999999E-3]
["Benzo(a)pyrene",null,"6-8hrs","None set µg/m3",null,9.5E-4,1.1999999999999999E-3]
["Benzo(b)fluoranthene",null,"6-8hrs","None set µg/m3",null,1.1999999999999999E-3,1.1999999999999999E-3]
["Benzo(b)naptho(2,1-d) thiophene",null,"6-8hrs","None set µg/m3",null,2.4499999999999999E-3,3.3E-3]
["Benzo(c)phenanthrene",null,"6-8hrs","None set µg/m3",null,9.5E-4,1.1999999999999999E-3]
["Benzo(ghi)perylene",null,"6-8hrs","None set µg/m3",null,9.5E-4,1.1999999999999999E-3]
["Benzo(k)fluoranthene",null,"6-8hrs","None set µg/m3",null,9.5E-4,1.1999999999999999E-3]
["Cholanthrene",null,"6-8hrs","None set µg/m3",null,9.5E-4,1.1999999999999999E-3]
["Chrysene",null,"6-8hrs","None set µg/m3",null,2.0999999999999999E-3,1.8E-3]
["Cyclopenta(cd)pyrene",null,"6-8hrs","None set µg/m3",null,1.6000000000000001E-3,1.1999999999999999E-3]
["Dibenzo(ai)pyrene",null,"6-8hrs","None set µg/m3",null,9.5E-4,1.1999999999999999E-3]
["Dibenzo(ah)anthracene",null,"6-8hrs","None set µg/m3",null,9.5E-4,1.1999999999999999E-3]
["Fluoranthene",null,"6-8hrs","None set µg/m3",null,0.11765,1.55E-2]
["Indeno(123-cd) pyrene",null,"6-8hrs","None set µg/m3",null,9.5E-4,1.1999999999999999E-3]
["Naphthalene",null,"6-8hrs","None set µg/m3",null,0.19814999999999999,0.14399999999999999]
["Comments :"]
["Where the laboratory result was reported as a Method Detection Limit, the result has been replaced with a value equal to the MDL. Where dioxins/furans have been reported at the MDL the value has been replaced with a value equal to 0.5 times the MDL as per guidance received from the Environment Agency (Ben Freeman).\nThe above mercury results were obtained using the MID 14385 standard. Additional (triplicate) mercury tests were carried out in accordance with the EN 13211 standard on both lines during September 2021. The results are not currently required by the permit and are therefore not included in the above average results for A1 & A2.\nQ3/Q4 dioxins/furans and PCB analysis was affected by a lab error and the site testing had to be repeated during January 2022, the results are not yet available so the above data represents only the Q1/Q2 analysis data."]

{"sheet":"Air (CEMS)","index":13,"n_rows":28,"n_cols":16,"rows_kept":28,"cut":false,"hidden":false,"merged":[[15,0,16,0],[17,0,18,0],[13,0,14,0],[5,0,6,12],[7,0,8,12],[10,0,10,12],[11,0,12,0],[11,2,12,2],[11,1,12,1],[11,3,11,4],[11,5,11,6],[11,7,11,8],[11,9,11,10],[11,11,11,12],[19,0,20,0],[21,0,22,0],[23,0,24,0],[26,0,26,12],[28,0,29,12]]}
[{"$f":"+'Cover Page'!$B$29","v":"Annual Performance Report 2021"},null,null,null,null,null,null,null,{"$f":"+'Cover Page'!$B$33","v":"SUEZ Suffolk Energy from Waste Facility"}]
[]
["Emissions to Air (continously monitored)"]
[null,null,null,null,null,null,null,null,null,null,null,null,null,null,null,"Notes:"]
["Summary of monitoring undertaken, standards used and compliance",null,null,null,null,null,null,null,null,null,null,null,null,null,null,"Template may require adjustment for any bespoke monitoring requirements of permit"]
[null,null,null,null,null,null,null,null,null,null,null,null,null,null,null,"Report to 2 decimal places, i.e. xx.xx%"]
[]
[]
[]
[]
["Results of emissions to air that are continuously monitored (maximum and average values for each line)"]
["Substance","Reference Period","Emission Limit Value","A1",null,"A2",null,"A3",null,"A4",null,"A5"]
[null,null,null,"Max.","Avg.","Max.","Avg.","Max.","Avg.","Max.","Avg.","Max.","Avg."]
["Oxides of nitrogen","Daily mean","200 mg/m3 ",{"$f":"NOx!$O$19","v":191.5},{"$f":"NOx!$N$19","v":179.86872198426735},{"$f":"NOx!$O$34","v":186.6},{"$f":"NOx!N34","v":179.66587737557234}]
[null,"½ hourly mean","400 mg/m3 ",{"$f":"NOx!$M$19","v":362.3},{"$f":"NOx!$L$19","v":179.86872198426735},{"$f":"NOx!$M$34","v":277.5},{"$f":"NOx!L34","v":179.66587737557234}]
["Particulates","Daily mean","10 mg/m3",{"$f":"Particulates!$O$19","v":4.0999999999999996},{"$f":"Particulates!$N$19","v":1.8200290302237516},{"$f":"Particulates!$O$34","v":1.9},{"$f":"Particulates!N34","v":1.0304161940145462}]
[null,"½ hourly mean","30 mg/m3 ",{"$f":"Particulates!$M$19","v":4.5},{"$f":"Particulates!$L$19","v":1.8200290302237516},{"$f":"Particulates!$M$34","v":8.9},{"$f":"Particulates!L34","v":1.0304161940145462}]
["Total Organic Carbon ","Daily mean","10 mg/m3 ",{"$f":"TOC!$O$19","v":0.9},{"$f":"TOC!$N$19","v":0.42026119546047092},{"$f":"TOC!$O$34","v":3},{"$f":"TOC!N34","v":0.41201190299104051}]
[null,"½ hourly mean","20 mg/m3 ",{"$f":"TOC!$M$19","v":23.2},{"$f":"TOC!$L$19","v":0.42026119546047092},{"$f":"TOC!$M$34","v":15.8},{"$f":"TOC!L34","v":0.41201190299104051}]
["Hydrogen chloride ","Daily mean","10 mg/m3 ",{"$f":"HCl!$O$19","v":6.5},{"$f":"HCl!$N$19","v":3.4320196070039741},{"$f":"HCl!$O$34","v":6.29},{"$f":"HCl!N34","v":3.270087887167159}]
[null,"½ hourly mean","60 mg/m3 ",{"$f":"HCl!$M$19","v":30.6},{"$f":"HCl!$L$19","v":3.4320196070039741},{"$f":"HCl!$M$34","v":21.37},{"$f":"HCl!L34","v":3.270087887167159}]
["Sulphur dioxide","Daily mean","50 mg/m3 ",{"$f":"'SO2'!$O$19","v":45.5},{"$f":"'SO2'!$N$19","v":32.560404248187396},{"$f":"'SO2'!$O$34","v":45.8},{"$f":"'SO2'!N34","v":26.732629237256692}]
[null,"½ hourly mean","200 mg/m3 ",{"$f":"'SO2'!$M$19","v":211.3},{"$f":"'SO2'!$L$19","v":32.560404248187396},{"$f":"'SO2'!$M$34","v":174.2},{"$f":"'SO2'!L34","v":26.732629237256692}]
["Carbon monoxide ","Daily mean","50 mg/m3 ",{"$f":"'CO 95% 10 min'!Q19","v":7.9},{"$f":"'CO 95% 10 min'!P19","v":1.5472945884328702},{"$f":"'CO 95% 10 min'!Q34","v":15},{"$f":"'CO 95% 10 min'!P34","v":0.91357685880038619}]
[null,"95%ile 10-min avg","150 mg/m3",{"$f":"MAX('CO 95% 10 min'!M7:M18)","v":33.32940673828125},{"$f":"E24","v":1.5472945884328702},{"$f":"MAX('CO 95% 10 min'!M22:M33)","v":119.87481689453125},{"$f":"'CO 95% 10 min'!N34","v":0.91357685880038619}]
[" Ammonia","Daily mean","No limit set"]
["* = delete or amend as appropriate"]
["Comments :"]

{"sheet":"HCl","index":14,"n_rows":79,"n_cols":17,"rows_kept":79,"cut":false,"hidden":false,"merged":[[12,16,15,18],[51,9,63,9],[66,9,78,9],[4,9,4,14],[4,1,4,3],[4,4,4,6],[48,0,51,6],[47,0,47,6],[6,9,18,9],[21,9,33,9],[36,9,48,9],[3,16,7,18],[9,16,11,18]]}
[{"$f":"+'Cover Page'!$B$29","v":"Annual Performance Report 2021"},null,null,null,{"$f":"+'Cover Page'!$B$33","v":"SUEZ Suffolk Energy from Waste Facility"}]
[]
["Monitoring of Hydrogen Chloride emissions",null,null,"Whole Installation",null,null,"See  Notes in Cell Q3",null,null,{"$f":"+A3","v":"Monitoring of Hydrogen Chloride emissions"},null,null,null,"Per Combustion Line",null,null,"Notes:"]
[null,null,null,null,null,null,null,null,null,null,null,null,null,null,null,null,"User to add logic to complete Whole installation, Table A5:G18. From the data in Per Combustion Line, Table J6:O79, subject to No. of lines installed"]
["mg/Nm3","1/2 Hourly Reference Periods",null,null,"Daily Reference Periods"]
[{"$f":"+'Cover Page'!C39","v":2021},"1/2 hourly HCl ELV","Monthly 1/2 hourly mean","Highest 1/2 hourly maximum","Daily HCl ELV","Monthly daily mean","Highest daily maximum",null,null,{"$f":"+A6","v":2021},"mg/Nm3","Monthly 1/2 hourly mean","Monthly 1/2 hourly maximum","Monthly daily mean","Monthly daily maximum"]
["Jan",60,{"$f":"AVERAGE(L7,L22)","v":2.9922580645161281},{"$f":"MAX(M7,M22)","v":8.49},10,{"$f":"AVERAGE(N7,N22)","v":2.9922580645161281},{"$f":"MAX(O7,O22)","v":5.47},null,null,"A1","Jan",3.1341935483870951,8.49,3.1341935483870951,5.47]
["Feb",60,{"$f":"AVERAGE(L8,L23)","v":2.4333465608465605},{"$f":"MAX(M8,M23)","v":10.02},10,{"$f":"AVERAGE(N8,N23)","v":2.4333465608465605},{"$f":"MAX(O8,O23)","v":5.68},null,null,null,"Feb",2.4374074074074068,7.52,2.4374074074074068,5.68]
["Mar",60,2.6037657784011219,30.6,10,{"$f":"AVERAGE(N9,N24)","v":2.6037657784011219},5.39,null,null,null,"Mar",2.3104347826086959,30.6,2.3104347826086959,3.29,null,"Whole Installation table A5:G18:"]
["Apr",60,1.9530654761904764,11.02,10,{"$f":"AVERAGE(N10,N25)","v":1.9530654761904764},5.35,null,null,null,"Apr",2.4857142857142862,7.91,2.4857142857142862,5.35,null,"Mean: for 1/2 hourly and daily periods calculate mean of values across all operational combustion lines for the month"]
["May",60,2.4506451612903231,8.23,10,{"$f":"AVERAGE(N11,N26)","v":2.4506451612903231},5.3,null,null,null,"May",2.5612903225806454,6,2.5612903225806454,4.38]
["Jun",60,3.7895185185185181,13.33,10,{"$f":"AVERAGE(N12,N27)","v":3.7895185185185181},6.4,null,null,null,"Jun",3.5553333333333321,13.33,3.5553333333333321,6.4]
["Jul",60,4.6988248847926268,21.37,10,{"$f":"AVERAGE(N13,N28)","v":4.6988248847926268},6.29,null,null,null,"Jul",4.5657142857142858,13.24,4.5657142857142858,6.22,null,"Maximum: for 1/2 hourly and daily periods use the highest value across all operational combustion lines for the month"]
["Aug",60,4.9861012235817572,11.43,10,{"$f":"AVERAGE(N14,N29)","v":4.9861012235817572},6.38,null,null,null,"Aug",5.0041379310344842,10.78,5.0041379310344842,6.38]
["Sep",60,4.6872360248447205,10.17,10,{"$f":"AVERAGE(N15,N30)","v":4.6872360248447205},6.5,null,null,null,"Sep",5.0314285714285711,9.6999999999999993,5.0314285714285711,6.5]
["Oct",60,3.2823701298701295,12.78,10,{"$f":"AVERAGE(N16,N31)","v":3.2823701298701295},6,null,null,null,"Oct",3.4292857142857143,12.78,3.4292857142857143,6]
["Nov",60,4.1353518518518513,11.8,10,{"$f":"AVERAGE(N17,N32)","v":4.1353518518518513},5.91,null,null,null,"Nov",4.3670370370370364,11.57,4.3670370370370364,5.91]
["Dec",60,2.2001612903225807,7.02,10,{"$f":"AVERAGE(N18,N33)","v":2.2001612903225807},4.6399999999999997,null,null,null,"Dec",2.3022580645161295,5.93,2.3022580645161295,3.76]
[null,null,null,null,null,null,null,null,null,null,"Annual",{"$f":"AVERAGE(L7:L18)","v":3.4320196070039741},{"$f":"MAX(M7:M18)","v":30.6},{"$f":"AVERAGE(N7:N18)","v":3.4320196070039741},{"$f":"MAX(O7:O18)","v":6.5}]
[]
[null,null,null,null,null,null,null,null,null,{"$f":"+A6","v":2021},"mg/Nm3","Monthly 1/2 hourly mean","Monthly 1/2 hourly maximum","Monthly daily mean","Monthly daily maximum"]
[null,null,null,null,null,null,null,null,null,"A2","Jan",2.8503225806451606,7.2,2.8503225806451606,3.97]
[null,null,null,null,null,null,null,null,null,null,"Feb",2.4292857142857147,10.02,2.4292857142857147,4.03]
[null,null,null,null,null,null,null,null,null,null,"Mar",2.8970967741935478,10.34,2.8970967741935478,5.39]
[null,null,null,null,null,null,null,null,null,null,"Apr",1.4204166666666669,11.02,1.4204166666666669,1.82]
[null,null,null,null,null,null,null,null,null,null,"May",2.3400000000000003,8.23,2.3400000000000003,5.3]
[null,null,null,null,null,null,null,null,null,null,"Jun",4.0237037037037036,10.14,4.0237037037037036,5.71]
[null,null,null,null,null,null,null,null,null,null,"Jul",4.8319354838709678,21.37,4.8319354838709678,6.29]
[null,null,null,null,null,null,null,null,null,null,"Aug",4.9680645161290311,11.43,4.9680645161290311,5.89]
[null,null,null,null,null,null,null,null,null,null,"Sep",4.3430434782608698,10.17,4.3430434782608698,5.84]
[null,null,null,null,null,null,null,null,null,null,"Oct",3.1354545454545448,11.58,3.1354545454545448,5.36]
[null,null,null,null,null,null,null,null,null,null,"Nov",3.9036666666666666,11.8,3.9036666666666666,5.71]
[null,null,null,null,null,null,null,null,null,null,"Dec",2.0980645161290319,7.02,2.0980645161290319,4.6399999999999997]
[null,null,null,null,null,null,null,null,null,null,"Annual",{"$f":"AVERAGE(L22:L33)","v":3.270087887167159},{"$f":"MAX(M22:M33)","v":21.37},{"$f":"AVERAGE(N22:N33)","v":3.270087887167159},{"$f":"MAX(O22:O33)","v":6.29}]
[]
[null,null,null,null,null,null,null,null,null,{"$f":"+A6","v":2021},"mg/Nm3","Monthly 1/2 hourly mean","Monthly 1/2 hourly maximum","Monthly daily mean","Monthly daily maximum"]
[null,null,null,null,null,null,null,null,null,"A3","Jan"]
[null,null,null,null,null,null,null,null,null,null,"Feb"]
[null,null,null,null,null,null,null,null,null,null,"Mar"]
[null,null,null,null,null,null,null,null,null,null,"Apr"]
[null,null,null,null,null,null,null,null,null,null,"May"]
[null,null,null,null,null,null,null,null,null,null,"Jun"]
[null,null,null,null,null,null,null,null,null,null,"Jul"]
[null,null,null,null,null,null,null,null,null,null,"Aug"]
[null,null,null,null,null,null,null,null,null,null,"Sep"]
[null,null,null,null,null,null,null,null,null,null,"Oct"]
[null,null,null,null,null,null,null,null,null,null,"Nov"]
["Comments :",null,null,null,null,null,null,null,null,null,"Dec"]
[null,null,null,null,null,null,null,null,null,null,"Annual",{"$f":"AVERAGE(L37:L48)","v":{"$error":"#DIV/0!"}},{"$f":"MAX(M37:M48)","v":0},{"$f":"AVERAGE(N37:N48)","v":{"$error":"#DIV/0!"}},{"$f":"MAX(O37:O48)","v":0}]
[]
[null,null,null,null,null,null,null,null,null,{"$f":"+A6","v":2021},"mg/Nm3","Monthly 1/2 hourly mean","Monthly 1/2 hourly maximum","Monthly daily mean","Monthly daily maximum"]
[null,null,null,null,null,null,null,null,null,"A4","Jan"]
[null,null,null,null,null,null,null,null,null,null,"Feb"]
[null,null,null,null,null,null,null,null,null,null,"Mar"]
[null,null,null,null,null,null,null,null,null,null,"Apr"]
[null,null,null,null,null,null,null,null,null,null,"May"]
[null,null,null,null,null,null,null,null,null,null,"Jun"]
[null,null,null,null,null,null,null,null,null,null,"Jul"]
[null,null,null,null,null,null,null,null,null,null,"Aug"]
[null,null,null,null,null,null,null,null,null,null,"Sep"]
[null,null,null,null,null,null,null,null,null,null,"Oct"]
[null,null,null,null,null,null,null,null,null,null,"Nov"]
[null,null,null,null,null,null,null,null,null,null,"Dec"]
[null,null,null,null,null,null,null,null,null,null,"Annual",{"$f":"AVERAGE(L52:L63)","v":{"$error":"#DIV/0!"}},{"$f":"MAX(M52:M63)","v":0},{"$f":"AVERAGE(N52:N63)","v":{"$error":"#DIV/0!"}},{"$f":"MAX(O52:O63)","v":0}]
[]
[null,null,null,null,null,null,null,null,null,{"$f":"+A6","v":2021},"mg/Nm3","Monthly 1/2 hourly mean","Monthly 1/2 hourly maximum","Monthly daily mean","Monthly daily maximum"]
[null,null,null,null,null,null,null,null,null,"A5","Jan"]
[null,null,null,null,null,null,null,null,null,null,"Feb"]
[null,null,null,null,null,null,null,null,null,null,"Mar"]
[null,null,null,null,null,null,null,null,null,null,"Apr"]
[null,null,null,null,null,null,null,null,null,null,"May"]
[null,null,null,null,null,null,null,null,null,null,"Jun"]
[null,null,null,null,null,null,null,null,null,null,"Jul"]
[null,null,null,null,null,null,null,null,null,null,"Aug"]
[null,null,null,null,null,null,null,null,null,null,"Sep"]
[null,null,null,null,null,null,null,null,null,null,"Oct"]
[null,null,null,null,null,null,null,null,null,null,"Nov"]
[null,null,null,null,null,null,null,null,null,null,"Dec"]
[null,null,null,null,null,null,null,null,null,null,"Annual",{"$f":"AVERAGE(L67:L78)","v":{"$error":"#DIV/0!"}},{"$f":"MAX(M67:M78)","v":0},{"$f":"AVERAGE(N67:N78)","v":{"$error":"#DIV/0!"}},{"$f":"MAX(O67:O78)","v":0}]

{"sheet":"SO2","index":15,"n_rows":79,"n_cols":17,"rows_kept":79,"cut":false,"hidden":false,"merged":[[3,16,7,18],[9,16,11,18],[12,16,15,18],[66,9,78,9],[4,1,4,3],[4,4,4,6],[4,9,4,14],[6,9,18,9],[21,9,33,9],[36,9,48,9],[47,0,47,6],[48,0,51,6],[51,9,63,9]]}
[{"$f":"+'Cover Page'!$B$29","v":"Annual Performance Report 2021"},null,null,null,{"$f":"+'Cover Page'!$B$33","v":"SUEZ Suffolk Energy from Waste Facility"}]
[]
["Monitoring of Sulphur dioxide emissions",null,null,"Whole Installation",null,null,"See  Notes in Cell Q3",null,null,{"$f":"+A3","v":"Monitoring of Sulphur dioxide emissions"},null,null,null,"Per Combustion Line",null,null,"Notes:"]
[null,null,null,null,null,null,null,null,null,null,null,null,null,null,null,null,"User to add logic to complete Whole installation, Table A5:G18. From the data in Per Combustion Line, Table J6:O79, subject to No. of lines installed"]
["mg/Nm3","1/2 Hourly Reference Periods",null,null,"Daily Reference Periods"]
[{"$f":"+'Cover Page'!C39","v":2021},"1/2 hourly SO2 ELV","Monthly 1/2 hourly mean","Highest 1/2 hourly maximum","Daily SO2 ELV","Monthly daily mean","Highest daily maximum",null,null,{"$f":"+A6","v":2021},"mg/Nm3","Monthly 1/2 hourly mean","Monthly 1/2 hourly maximum","Monthly daily mean","Monthly daily maximum"]
["Jan",200,{"$f":"AVERAGE(L7,L22)","v":38.340322580645172},{"$f":"MAX(M7,M22)","v":161},50,{"$f":"AVERAGE(N7,N22)","v":38.340322580645172},{"$f":"MAX(O7,O22)","v":45.5},null,null,"A1","Jan",41.132258064516144,161,41.132258064516144,45.5]
["Feb",200,{"$f":"AVERAGE(L8,L23)","v":34.120899470899474},{"$f":"MAX(M8,M23)","v":174.2},50,{"$f":"AVERAGE(N8,N23)","v":34.120899470899474},{"$f":"MAX(O8,O23)","v":45.8},null,null,null,"Feb",36.470370370370375,143.6,36.470370370370375,44.6]
["Mar",200,{"$f":"AVERAGE(L9,L24)","v":37.224123422159892},165.8,50,{"$f":"AVERAGE(N9,N24)","v":37.224123422159892},44,null,null,null,"Mar",39.186956521739134,156.80000000000001,39.186956521739134,43.6,null,"Whole Installation table A5:G18:"]
["Apr",200,{"$f":"AVERAGE(L10,L25)","v":37.298511904761895},115.9,50,{"$f":"AVERAGE(N10,N25)","v":37.298511904761895},42.9,null,null,null,"Apr",37.342857142857142,115.9,37.342857142857142,42.9,null,"Mean: for 1/2 hourly and daily periods calculate mean of values across all operational combustion lines for the month"]
["May",200,{"$f":"AVERAGE(L11,L26)","v":31.32442396313364},162.19999999999999,50,{"$f":"AVERAGE(N11,N26)","v":31.32442396313364},43.4,null,null,null,"May",36.777419354838713,162.19999999999999,36.777419354838713,43.4]
["Jun",200,{"$f":"AVERAGE(L12,L27)","v":25.199444444444438},138.4,50,{"$f":"AVERAGE(N12,N27)","v":25.199444444444438},39.4,null,null,null,"Jun",31.576666666666661,132.80000000000001,31.576666666666661,39.4]
["Jul",200,{"$f":"AVERAGE(L13,L28)","v":23.349251152073734},109.7,50,{"$f":"AVERAGE(N13,N28)","v":23.349251152073734},36.299999999999997,null,null,null,"Jul",27.017857142857146,93.3,27.017857142857146,36.299999999999997,null,"Maximum: for 1/2 hourly and daily periods use the highest value across all operational combustion lines for the month"]
["Aug",200,{"$f":"AVERAGE(L14,L29)","v":22.422858731924364},129.6,50,{"$f":"AVERAGE(N14,N29)","v":22.422858731924364},40.5,null,null,null,"Aug",26.158620689655177,129.6,26.158620689655177,40.5]
["Sep",200,{"$f":"AVERAGE(L15,L30)","v":25.502173913043478},82.1,50,{"$f":"AVERAGE(N15,N30)","v":25.502173913043478},36.6,null,null,null,"Sep",25.999999999999996,82.1,25.999999999999996,36.6]
["Oct",200,{"$f":"AVERAGE(L16,L31)","v":22.139285714285712},129,50,{"$f":"AVERAGE(N16,N31)","v":22.139285714285712},34,null,null,null,"Oct",25.378571428571426,129,25.378571428571426,34]
["Nov",200,{"$f":"AVERAGE(L17,L32)","v":26.488518518518518},136.1,50,{"$f":"AVERAGE(N17,N32)","v":26.488518518518518},39.9,null,null,null,"Nov",28.670370370370371,113.4,28.670370370370371,39.9]
["Dec",200,{"$f":"AVERAGE(L18,L33)","v":32.348387096774189},211.3,50,{"$f":"AVERAGE(N18,N33)","v":32.348387096774189},40.799999999999997,null,null,null,"Dec",35.012903225806447,211.3,35.012903225806447,40.799999999999997]
[null,null,null,null,null,null,null,null,null,null,"Annual",{"$f":"AVERAGE(L7:L18)","v":32.560404248187396},{"$f":"MAX(M7:M18)","v":211.3},{"$f":"AVERAGE(N7:N18)","v":32.560404248187396},{"$f":"MAX(O7:O18)","v":45.5}]
[]
[null,null,null,null,null,null,null,null,null,{"$f":"+A6","v":2021},"mg/Nm3","Monthly 1/2 hourly mean","Monthly 1/2 hourly maximum","Monthly daily mean","Monthly daily maximum"]
[null,null,null,null,null,null,null,null,null,"A2","Jan",35.548387096774199,132.9,35.548387096774199,43.3]
[null,null,null,null,null,null,null,null,null,null,"Feb",31.771428571428572,174.2,31.771428571428572,45.8]
[null,null,null,null,null,null,null,null,null,null,"Mar",35.261290322580656,165.8,35.261290322580656,44]
[null,null,null,null,null,null,null,null,null,null,"Apr",37.254166666666656,80.400000000000006,37.254166666666656,39.9]
[null,null,null,null,null,null,null,null,null,null,"May",25.87142857142857,67.099999999999994,25.87142857142857,36.700000000000003]
[null,null,null,null,null,null,null,null,null,null,"Jun",18.822222222222219,138.4,18.822222222222219,33.1]
[null,null,null,null,null,null,null,null,null,null,"Jul",19.680645161290318,109.7,19.680645161290318,31.2]
[null,null,null,null,null,null,null,null,null,null,"Aug",18.687096774193552,67,18.687096774193552,29.4]
[null,null,null,null,null,null,null,null,null,null,"Sep",25.004347826086956,62.2,25.004347826086956,36.6]
[null,null,null,null,null,null,null,null,null,null,"Oct",18.899999999999995,66.7,18.899999999999995,31.4]
[null,null,null,null,null,null,null,null,null,null,"Nov",24.306666666666668,136.1,24.306666666666668,35.5]
[null,null,null,null,null,null,null,null,null,null,"Dec",29.683870967741935,169,29.683870967741935,39.200000000000003]
[null,null,null,null,null,null,null,null,null,null,"Annual",{"$f":"AVERAGE(L22:L33)","v":26.732629237256692},{"$f":"MAX(M22:M33)","v":174.2},{"$f":"AVERAGE(N22:N33)","v":26.732629237256692},{"$f":"MAX(O22:O33)","v":45.8}]
[]
[null,null,null,null,null,null,null,null,null,{"$f":"+A6","v":2021},"mg/Nm3","Monthly 1/2 hourly mean","Monthly 1/2 hourly maximum","Monthly daily mean","Monthly daily maximum"]
[null,null,null,null,null,null,null,null,null,"A3","Jan"]
[null,null,null,null,null,null,null,null,null,null,"Feb"]
[null,null,null,null,null,null,null,null,null,null,"Mar"]
[null,null,null,null,null,null,null,null,null,null,"Apr"]
[null,null,null,null,null,null,null,null,null,null,"May"]
[null,null,null,null,null,null,null,null,null,null,"Jun"]
[null,null,null,null,null,null,null,null,null,null,"Jul"]
[null,null,null,null,null,null,null,null,null,null,"Aug"]
[null,null,null,null,null,null,null,null,null,null,"Sep"]
[null,null,null,null,null,null,null,null,null,null,"Oct"]
[null,null,null,null,null,null,null,null,null,null,"Nov"]
["Comments :",null,null,null,null,null,null,null,null,null,"Dec"]
[null,null,null,null,null,null,null,null,null,null,"Annual",{"$f":"AVERAGE(L37:L48)","v":{"$error":"#DIV/0!"}},{"$f":"MAX(M37:M48)","v":0},{"$f":"AVERAGE(N37:N48)","v":{"$error":"#DIV/0!"}},{"$f":"MAX(O37:O48)","v":0}]
[]
[null,null,null,null,null,null,null,null,null,{"$f":"+A6","v":2021},"mg/Nm3","Monthly 1/2 hourly mean","Monthly 1/2 hourly maximum","Monthly daily mean","Monthly daily maximum"]
[null,null,null,null,null,null,null,null,null,"A4","Jan"]
[null,null,null,null,null,null,null,null,null,null,"Feb"]
[null,null,null,null,null,null,null,null,null,null,"Mar"]
[null,null,null,null,null,null,null,null,null,null,"Apr"]
[null,null,null,null,null,null,null,null,null,null,"May"]
[null,null,null,null,null,null,null,null,null,null,"Jun"]
[null,null,null,null,null,null,null,null,null,null,"Jul"]
[null,null,null,null,null,null,null,null,null,null,"Aug"]
[null,null,null,null,null,null,null,null,null,null,"Sep"]
[null,null,null,null,null,null,null,null,null,null,"Oct"]
[null,null,null,null,null,null,null,null,null,null,"Nov"]
[null,null,null,null,null,null,null,null,null,null,"Dec"]
[null,null,null,null,null,null,null,null,null,null,"Annual",{"$f":"AVERAGE(L52:L63)","v":{"$error":"#DIV/0!"}},{"$f":"MAX(M52:M63)","v":0},{"$f":"AVERAGE(N52:N63)","v":{"$error":"#DIV/0!"}},{"$f":"MAX(O52:O63)","v":0}]
[]
[null,null,null,null,null,null,null,null,null,{"$f":"+A6","v":2021},"mg/Nm3","Monthly 1/2 hourly mean","Monthly 1/2 hourly maximum","Monthly daily mean","Monthly daily maximum"]
[null,null,null,null,null,null,null,null,null,"A5","Jan"]
[null,null,null,null,null,null,null,null,null,null,"Feb"]
[null,null,null,null,null,null,null,null,null,null,"Mar"]
[null,null,null,null,null,null,null,null,null,null,"Apr"]
[null,null,null,null,null,null,null,null,null,null,"May"]
[null,null,null,null,null,null,null,null,null,null,"Jun"]
[null,null,null,null,null,null,null,null,null,null,"Jul"]
[null,null,null,null,null,null,null,null,null,null,"Aug"]
[null,null,null,null,null,null,null,null,null,null,"Sep"]
[null,null,null,null,null,null,null,null,null,null,"Oct"]
[null,null,null,null,null,null,null,null,null,null,"Nov"]
[null,null,null,null,null,null,null,null,null,null,"Dec"]
[null,null,null,null,null,null,null,null,null,null,"Annual",{"$f":"AVERAGE(L67:L78)","v":{"$error":"#DIV/0!"}},{"$f":"MAX(M67:M78)","v":0},{"$f":"AVERAGE(N67:N78)","v":{"$error":"#DIV/0!"}},{"$f":"MAX(O67:O78)","v":0}]

{"sheet":"NOx","index":16,"n_rows":79,"n_cols":17,"rows_kept":79,"cut":false,"hidden":false,"merged":[[3,16,7,18],[9,16,11,18],[12,16,15,18],[66,9,78,9],[4,1,4,3],[4,4,4,6],[4,9,4,14],[6,9,18,9],[21,9,33,9],[36,9,48,9],[47,0,47,6],[48,0,51,6],[51,9,63,9]]}
[{"$f":"+'Cover Page'!$B$29","v":"Annual Performance Report 2021"},null,null,null,{"$f":"+'Cover Page'!$B$33","v":"SUEZ Suffolk Energy from Waste Facility"}]
[]
["Monitoring of Oxides of Nitrogen emissions",null,null,"Whole Installation",null,null,"See  Notes in Cell Q3",null,null,{"$f":"+A3","v":"Monitoring of Oxides of Nitrogen emissions"},null,null,null,"Per Combustion Line",null,null,"Notes:"]
[null,null,null,null,null,null,null,null,null,null,null,null,null,null,null,null,"User to add logic to complete Whole installation, Table A5:G18. From the data in Per Combustion Line, Table J6:O79, subject to No. of lines installed"]
["mg/Nm3","1/2 Hourly Reference Periods",null,null,"Daily Reference Periods"]
[{"$f":"+'Cover Page'!C39","v":2021},"1/2 hourly NOx ELV","Monthly 1/2 hourly mean","Highest 1/2 hourly maximum","Daily NOx ELV","Monthly daily mean","Highest daily maximum",null,null,{"$f":"+A6","v":2021},"mg/Nm3","Monthly 1/2 hourly mean","Monthly 1/2 hourly maximum","Monthly daily mean","Monthly daily maximum"]
["Jan",400,{"$f":"AVERAGE(L7,L22)","v":180.00806451612902},{"$f":"MAX(M7,M22)","v":219.1},200,{"$f":"AVERAGE(N7,N22)","v":180.00806451612902},{"$f":"MAX(O7,O22)","v":182.3},null,null,"A1","Jan",180.02903225806452,219.1,180.02903225806452,182.3]
["Feb",400,{"$f":"AVERAGE(L8,L23)","v":179.32810846560852},{"$f":"MAX(M8,M23)","v":257.2},200,{"$f":"AVERAGE(N8,N23)","v":179.32810846560852},{"$f":"MAX(O8,O23)","v":182.4},null,null,null,"Feb",179.27407407407412,257.2,179.27407407407412,182.4]
["Mar",400,180.3528751753156,292.89999999999998,200,180.3528751753156,186.6,null,null,null,"Mar",180.23478260869564,292.89999999999998,180.23478260869564,183,null,"Whole Installation table A5:G18:"]
["Apr",400,179.68988095238097,230.7,200,179.68988095238097,182.8,null,null,null,"Apr",180.23809523809524,227,180.23809523809524,182.8,null,"Mean: for 1/2 hourly and daily periods calculate mean of values across all operational combustion lines for the month"]
["May",400,181.38663594470046,267.39999999999998,200,181.38663594470046,191,null,null,null,"May",182.31612903225809,267.39999999999998,182.31612903225809,191]
["Jun",400,180.06777777777779,229.5,200,180.06777777777779,181.2,null,null,null,"Jun",180.04666666666668,229.5,180.04666666666668,181.2]
["Jul",400,180.39544930875576,277.5,200,180.39544930875576,186.6,null,null,null,"Jul",180.03928571428574,205.5,180.03928571428574,180.8,null,"Maximum: for 1/2 hourly and daily periods use the highest value across all operational combustion lines for the month"]
["Aug",400,180.8877085650723,362.3,200,180.8877085650723,188,null,null,null,"Aug",181.06896551724137,362.3,181.06896551724137,188]
["Sep",400,180.86195652173913,276.5,200,180.86195652173913,191.5,null,null,null,"Sep",180.95,276.5,180.95,191.5]
["Oct",400,179.87857142857143,223.9,200,179.87857142857143,180.2,null,null,null,"Oct",179.95714285714286,199.5,179.95714285714286,180.2]
["Nov",400,180.02314814814815,287.60000000000002,200,180.02314814814815,181.6,null,null,null,"Nov",179.99629629629624,287.60000000000002,179.99629629629624,180.9]
["Dec",400,174.3274193548387,248.3,200,174.3274193548387,182.8,null,null,null,"Dec",174.27419354838713,214.4,174.27419354838713,180.8]
[null,null,null,null,null,null,null,null,null,null,"Annual",{"$f":"AVERAGE(L7:L18)","v":179.86872198426735},{"$f":"MAX(M7:M18)","v":362.3},{"$f":"AVERAGE(N7:N18)","v":179.86872198426735},{"$f":"MAX(O7:O18)","v":191.5}]
[]
[null,null,null,null,null,null,null,null,null,{"$f":"+A6","v":2021},"mg/Nm3","Monthly 1/2 hourly mean","Monthly 1/2 hourly maximum","Monthly daily mean","Monthly daily maximum"]
[null,null,null,null,null,null,null,null,null,"A2","Jan",179.98709677419353,200.5,179.98709677419353,180.5]
[null,null,null,null,null,null,null,null,null,null,"Feb",179.3821428571429,244,179.3821428571429,182.1]
[null,null,null,null,null,null,null,null,null,null,"Mar",180.47096774193554,218.8,180.47096774193554,186.6]
[null,null,null,null,null,null,null,null,null,null,"Apr",179.14166666666668,230.7,179.14166666666668,180.2]
[null,null,null,null,null,null,null,null,null,null,"May",180.45714285714286,249.8,180.45714285714286,184.9]
[null,null,null,null,null,null,null,null,null,null,"Jun",180.08888888888887,221.6,180.08888888888887,180.9]
[null,null,null,null,null,null,null,null,null,null,"Jul",180.7516129032258,277.5,180.7516129032258,186.6]
[null,null,null,null,null,null,null,null,null,null,"Aug",180.70645161290324,253.5,180.70645161290324,184.6]
[null,null,null,null,null,null,null,null,null,null,"Sep",180.77391304347827,236.5,180.77391304347827,185.5]
[null,null,null,null,null,null,null,null,null,null,"Oct",179.79999999999998,223.9,179.79999999999998,180.2]
[null,null,null,null,null,null,null,null,null,null,"Nov",180.05000000000004,225.5,180.05000000000004,181.6]
[null,null,null,null,null,null,null,null,null,null,"Dec",174.38064516129029,248.3,174.38064516129029,182.8]
[null,null,null,null,null,null,null,null,null,null,"Annual",{"$f":"AVERAGE(L22:L33)","v":179.66587737557234},{"$f":"MAX(M22:M33)","v":277.5},{"$f":"AVERAGE(N22:N33)","v":179.66587737557234},{"$f":"MAX(O22:O33)","v":186.6}]
[]
[null,null,null,null,null,null,null,null,null,{"$f":"+A6","v":2021},"mg/Nm3","Monthly 1/2 hourly mean","Monthly 1/2 hourly maximum","Monthly daily mean","Monthly daily maximum"]
[null,null,null,null,null,null,null,null,null,"A3","Jan"]
[null,null,null,null,null,null,null,null,null,null,"Feb"]
[null,null,null,null,null,null,null,null,null,null,"Mar"]
[null,null,null,null,null,null,null,null,null,null,"Apr"]
[null,null,null,null,null,null,null,null,null,null,"May"]
[null,null,null,null,null,null,null,null,null,null,"Jun"]
[null,null,null,null,null,null,null,null,null,null,"Jul"]
[null,null,null,null,null,null,null,null,null,null,"Aug"]
[null,null,null,null,null,null,null,null,null,null,"Sep"]
[null,null,null,null,null,null,null,null,null,null,"Oct"]
[null,null,null,null,null,null,null,null,null,null,"Nov"]
["Comments :",null,null,null,null,null,null,null,null,null,"Dec"]
[null,null,null,null,null,null,null,null,null,null,"Annual",{"$f":"AVERAGE(L37:L48)","v":{"$error":"#DIV/0!"}},{"$f":"MAX(M37:M48)","v":0},{"$f":"AVERAGE(N37:N48)","v":{"$error":"#DIV/0!"}},{"$f":"MAX(O37:O48)","v":0}]
[]
[null,null,null,null,null,null,null,null,null,{"$f":"+A6","v":2021},"mg/Nm3","Monthly 1/2 hourly mean","Monthly 1/2 hourly maximum","Monthly daily mean","Monthly daily maximum"]
[null,null,null,null,null,null,null,null,null,"A4","Jan"]
[null,null,null,null,null,null,null,null,null,null,"Feb"]
[null,null,null,null,null,null,null,null,null,null,"Mar"]
[null,null,null,null,null,null,null,null,null,null,"Apr"]
[null,null,null,null,null,null,null,null,null,null,"May"]
[null,null,null,null,null,null,null,null,null,null,"Jun"]
[null,null,null,null,null,null,null,null,null,null,"Jul"]
[null,null,null,null,null,null,null,null,null,null,"Aug"]
[null,null,null,null,null,null,null,null,null,null,"Sep"]
[null,null,null,null,null,null,null,null,null,null,"Oct"]
[null,null,null,null,null,null,null,null,null,null,"Nov"]
[null,null,null,null,null,null,null,null,null,null,"Dec"]
[null,null,null,null,null,null,null,null,null,null,"Annual",{"$f":"AVERAGE(L52:L63)","v":{"$error":"#DIV/0!"}},{"$f":"MAX(M52:M63)","v":0},{"$f":"AVERAGE(N52:N63)","v":{"$error":"#DIV/0!"}},{"$f":"MAX(O52:O63)","v":0}]
[]
[null,null,null,null,null,null,null,null,null,{"$f":"+A6","v":2021},"mg/Nm3","Monthly 1/2 hourly mean","Monthly 1/2 hourly maximum","Monthly daily mean","Monthly daily maximum"]
[null,null,null,null,null,null,null,null,null,"A5","Jan"]
[null,null,null,null,null,null,null,null,null,null,"Feb"]
[null,null,null,null,null,null,null,null,null,null,"Mar"]
[null,null,null,null,null,null,null,null,null,null,"Apr"]
[null,null,null,null,null,null,null,null,null,null,"May"]
[null,null,null,null,null,null,null,null,null,null,"Jun"]
[null,null,null,null,null,null,null,null,null,null,"Jul"]
[null,null,null,null,null,null,null,null,null,null,"Aug"]
[null,null,null,null,null,null,null,null,null,null,"Sep"]
[null,null,null,null,null,null,null,null,null,null,"Oct"]
[null,null,null,null,null,null,null,null,null,null,"Nov"]
[null,null,null,null,null,null,null,null,null,null,"Dec"]
[null,null,null,null,null,null,null,null,null,null,"Annual",{"$f":"AVERAGE(L67:L78)","v":{"$error":"#DIV/0!"}},{"$f":"MAX(M67:M78)","v":0},{"$f":"AVERAGE(N67:N78)","v":{"$error":"#DIV/0!"}},{"$f":"MAX(O67:O78)","v":0}]

{"sheet":"TOC","index":17,"n_rows":79,"n_cols":17,"rows_kept":79,"cut":false,"hidden":false,"merged":[[3,16,7,18],[9,16,11,18],[12,16,15,18],[66,9,78,9],[4,1,4,3],[4,4,4,6],[4,9,4,14],[6,9,18,9],[21,9,33,9],[36,9,48,9],[47,0,47,6],[48,0,51,6],[51,9,63,9]]}
[{"$f":"+'Cover Page'!$B$29","v":"Annual Performance Report 2021"},null,null,null,{"$f":"+'Cover Page'!$B$33","v":"SUEZ Suffolk Energy from Waste Facility"}]
[]
["Monitoring of Total organic carbon emissions",null,null,"Whole Installation",null,null,"See  Notes in Cell Q3",null,null,{"$f":"+A3","v":"Monitoring of Total organic carbon emissions"},null,null,null,"Per Combustion Line",null,null,"Notes:"]
[null,null,null,null,null,null,null,null,null,null,null,null,null,null,null,null,"User to add logic to complete Whole installation, Table A5:G18. From the data in Per Combustion Line, Table J6:O79, subject to No. of lines installed"]
["mg/Nm3","1/2 Hourly Reference Periods",null,null,"Daily Reference Periods"]
[{"$f":"+'Cover Page'!C39","v":2021},"1/2 hourly TOC ELV","Monthly 1/2 hourly mean","Highest 1/2 hourly maximum","Daily TOC ELV","Monthly daily mean","Highest daily maximum",null,null,{"$f":"+A6","v":2021},"mg/Nm3","Monthly 1/2 hourly mean","Monthly 1/2 hourly maximum","Monthly daily mean","Monthly daily maximum"]
["Jan",20,{"$f":"AVERAGE(L7,L22)","v":0.29193548387096774},{"$f":"MAX(M7,M22)","v":10.3},10,{"$f":"AVERAGE(N7,N22)","v":0.29193548387096774},{"$f":"MAX(O7,O22)","v":3},null,null,"A1","Jan",0.26774193548387093,10.3,0.26774193548387093,0.5]
["Feb",20,{"$f":"AVERAGE(L8,L23)","v":0.31117724867724861},{"$f":"MAX(M8,M23)","v":2.8},10,{"$f":"AVERAGE(N8,N23)","v":0.31117724867724861},{"$f":"MAX(O8,O23)","v":0.5},null,null,null,"Feb",0.3259259259259259,2.8,0.3259259259259259,0.5]
["Mar",20,0.35077138849929879,4.2,10,0.35077138849929879,0.5,null,null,null,"Mar",0.34347826086956523,4.2,0.34347826086956523,0.5,null,"Whole Installation table A5:G18:"]
["Apr",20,0.42172619047619042,1.3,10,0.42172619047619042,0.7,null,null,null,"Apr",0.41428571428571426,1.2,0.41428571428571426,0.7,null,"Mean: for 1/2 hourly and daily periods calculate mean of values across all operational combustion lines for the month"]
["May",20,0.44971198156682035,3.2,10,0.44971198156682035,0.6,null,null,null,"May",0.43870967741935496,2.8,0.43870967741935496,0.6]
["Jun",20,0.44500000000000017,23.2,10,0.44500000000000017,0.9,null,null,null,"Jun",0.45666666666666683,23.2,0.45666666666666683,0.9]
["Jul",20,0.45063364055299548,7.6,10,0.45063364055299548,0.8,null,null,null,"Jul",0.44642857142857156,7.6,0.44642857142857156,0.7,null,"Maximum: for 1/2 hourly and daily periods use the highest value across all operational combustion lines for the month"]
["Aug",20,0.46129032258064517,4.9000000000000004,10,0.46129032258064517,0.9,null,null,null,"Aug",0.5,3.6,0.5,0.6]
["Sep",20,0.5100931677018633,15.8,10,0.5100931677018633,0.7,null,null,null,"Sep",0.50714285714285712,0.9,0.50714285714285712,0.6]
["Oct",20,0.54025974025974022,6.7,10,0.54025974025974022,0.8,null,null,null,"Oct",0.5714285714285714,6.7,0.5714285714285714,0.8]
["Nov",20,0.37555555555555564,9.1999999999999993,10,0.37555555555555564,0.5,null,null,null,"Nov",0.37777777777777788,9.1999999999999993,0.37777777777777788,0.5]
["Dec",20,0.38548387096774206,5.0999999999999996,10,0.38548387096774206,0.6,null,null,null,"Dec",0.39354838709677431,5.0999999999999996,0.39354838709677431,0.5]
[null,null,null,null,null,null,null,null,null,null,"Annual",{"$f":"AVERAGE(L7:L18)","v":0.42026119546047092},{"$f":"MAX(M7:M18)","v":23.2},{"$f":"AVERAGE(N7:N18)","v":0.42026119546047092},{"$f":"MAX(O7:O18)","v":0.9}]
[]
[null,null,null,null,null,null,null,null,null,{"$f":"+A6","v":2021},"mg/Nm3","Monthly 1/2 hourly mean","Monthly 1/2 hourly maximum","Monthly daily mean","Monthly daily maximum"]
[null,null,null,null,null,null,null,null,null,"A2","Jan",0.31612903225806455,0.5,0.31612903225806455,3]
[null,null,null,null,null,null,null,null,null,null,"Feb",0.29642857142857137,0.8,0.29642857142857137,0.4]
[null,null,null,null,null,null,null,null,null,null,"Mar",0.35806451612903234,3.1,0.35806451612903234,0.5]
[null,null,null,null,null,null,null,null,null,null,"Apr",0.42916666666666664,1.3,0.42916666666666664,0.6]
[null,null,null,null,null,null,null,null,null,null,"May",0.4607142857142858,3.2,0.4607142857142858,0.6]
[null,null,null,null,null,null,null,null,null,null,"Jun",0.43333333333333351,8.1,0.43333333333333351,0.5]
[null,null,null,null,null,null,null,null,null,null,"Jul",0.45483870967741946,6.5,0.45483870967741946,0.8]
[null,null,null,null,null,null,null,null,null,null,"Aug",0.4225806451612904,4.9000000000000004,0.4225806451612904,0.9]
[null,null,null,null,null,null,null,null,null,null,"Sep",0.51304347826086949,15.8,0.51304347826086949,0.7]
[null,null,null,null,null,null,null,null,null,null,"Oct",0.50909090909090915,1.8,0.50909090909090915,0.8]
[null,null,null,null,null,null,null,null,null,null,"Nov",0.37333333333333346,4.7,0.37333333333333346,0.5]
[null,null,null,null,null,null,null,null,null,null,"Dec",0.37741935483870975,1,0.37741935483870975,0.6]
[null,null,null,null,null,null,null,null,null,null,"Annual",{"$f":"AVERAGE(L22:L33)","v":0.41201190299104051},{"$f":"MAX(M22:M33)","v":15.8},{"$f":"AVERAGE(N22:N33)","v":0.41201190299104051},{"$f":"MAX(O22:O33)","v":3}]
[]
[null,null,null,null,null,null,null,null,null,{"$f":"+A6","v":2021},"mg/Nm3","Monthly 1/2 hourly mean","Monthly 1/2 hourly maximum","Monthly daily mean","Monthly daily maximum"]
[null,null,null,null,null,null,null,null,null,"A3","Jan"]
[null,null,null,null,null,null,null,null,null,null,"Feb"]
[null,null,null,null,null,null,null,null,null,null,"Mar"]
[null,null,null,null,null,null,null,null,null,null,"Apr"]
[null,null,null,null,null,null,null,null,null,null,"May"]
[null,null,null,null,null,null,null,null,null,null,"Jun"]
[null,null,null,null,null,null,null,null,null,null,"Jul"]
[null,null,null,null,null,null,null,null,null,null,"Aug"]
[null,null,null,null,null,null,null,null,null,null,"Sep"]
[null,null,null,null,null,null,null,null,null,null,"Oct"]
[null,null,null,null,null,null,null,null,null,null,"Nov"]
["Comments :",null,null,null,null,null,null,null,null,null,"Dec"]
[null,null,null,null,null,null,null,null,null,null,"Annual",{"$f":"AVERAGE(L37:L48)","v":{"$error":"#DIV/0!"}},{"$f":"MAX(M37:M48)","v":0},{"$f":"AVERAGE(N37:N48)","v":{"$error":"#DIV/0!"}},{"$f":"MAX(O37:O48)","v":0}]
[]
[null,null,null,null,null,null,null,null,null,{"$f":"+A6","v":2021},"mg/Nm3","Monthly 1/2 hourly mean","Monthly 1/2 hourly maximum","Monthly daily mean","Monthly daily maximum"]
[null,null,null,null,null,null,null,null,null,"A4","Jan"]
[null,null,null,null,null,null,null,null,null,null,"Feb"]
[null,null,null,null,null,null,null,null,null,null,"Mar"]
[null,null,null,null,null,null,null,null,null,null,"Apr"]
[null,null,null,null,null,null,null,null,null,null,"May"]
[null,null,null,null,null,null,null,null,null,null,"Jun"]
[null,null,null,null,null,null,null,null,null,null,"Jul"]
[null,null,null,null,null,null,null,null,null,null,"Aug"]
[null,null,null,null,null,null,null,null,null,null,"Sep"]
[null,null,null,null,null,null,null,null,null,null,"Oct"]
[null,null,null,null,null,null,null,null,null,null,"Nov"]
[null,null,null,null,null,null,null,null,null,null,"Dec"]
[null,null,null,null,null,null,null,null,null,null,"Annual",{"$f":"AVERAGE(L52:L63)","v":{"$error":"#DIV/0!"}},{"$f":"MAX(M52:M63)","v":0},{"$f":"AVERAGE(N52:N63)","v":{"$error":"#DIV/0!"}},{"$f":"MAX(O52:O63)","v":0}]
[]
[null,null,null,null,null,null,null,null,null,{"$f":"+A6","v":2021},"mg/Nm3","Monthly 1/2 hourly mean","Monthly 1/2 hourly maximum","Monthly daily mean","Monthly daily maximum"]
[null,null,null,null,null,null,null,null,null,"A5","Jan"]
[null,null,null,null,null,null,null,null,null,null,"Feb"]
[null,null,null,null,null,null,null,null,null,null,"Mar"]
[null,null,null,null,null,null,null,null,null,null,"Apr"]
[null,null,null,null,null,null,null,null,null,null,"May"]
[null,null,null,null,null,null,null,null,null,null,"Jun"]
[null,null,null,null,null,null,null,null,null,null,"Jul"]
[null,null,null,null,null,null,null,null,null,null,"Aug"]
[null,null,null,null,null,null,null,null,null,null,"Sep"]
[null,null,null,null,null,null,null,null,null,null,"Oct"]
[null,null,null,null,null,null,null,null,null,null,"Nov"]
[null,null,null,null,null,null,null,null,null,null,"Dec"]
[null,null,null,null,null,null,null,null,null,null,"Annual",{"$f":"AVERAGE(L67:L78)","v":{"$error":"#DIV/0!"}},{"$f":"MAX(M67:M78)","v":0},{"$f":"AVERAGE(N67:N78)","v":{"$error":"#DIV/0!"}},{"$f":"MAX(O67:O78)","v":0}]

{"sheet":"Particulates","index":18,"n_rows":79,"n_cols":17,"rows_kept":79,"cut":false,"hidden":false,"merged":[[3,16,7,18],[9,16,11,18],[12,16,15,18],[66,9,78,9],[4,1,4,3],[4,4,4,6],[4,9,4,14],[6,9,18,9],[21,9,33,9],[36,9,48,9],[47,0,47,6],[48,0,51,6],[51,9,63,9]]}
[{"$f":"+'Cover Page'!$B$29","v":"Annual Performance Report 2021"},null,null,null,{"$f":"+'Cover Page'!$B$33","v":"SUEZ Suffolk Energy from Waste Facility"}]
[]
["Monitoring of Particulate matter emissions",null,null,"Whole Installation",null,null,"See  Notes in Cell Q3",null,null,{"$f":"+A3","v":"Monitoring of Particulate matter emissions"},null,null,null,"Per Combustion Line",null,null,"Notes:"]
[null,null,null,null,null,null,null,null,null,null,null,null,null,null,null,null,"User to add logic to complete Whole installation, Table A5:G18. From the data in Per Combustion Line, Table J6:O79, subject to No. of lines installed"]
["mg/Nm3","1/2 Hourly Reference Periods",null,null,"Daily Reference Periods"]
[{"$f":"+'Cover Page'!C39","v":2021},"1/2 hourly PM ELV","Monthly 1/2 hourly mean","Highest 1/2 hourly maximum","Daily PM ELV","Monthly daily mean","Highest daily maximum",null,null,{"$f":"+A6","v":2021},"mg/Nm3","Monthly 1/2 hourly mean","Monthly 1/2 hourly maximum","Monthly daily mean","Monthly daily maximum"]
["Jan",30,{"$f":"AVERAGE(L7,L22)","v":1.203225806451613},{"$f":"MAX(M7,M22)","v":1.8},10,{"$f":"AVERAGE(N7,N22)","v":1.203225806451613},{"$f":"MAX(O7,O22)","v":1.6},null,null,"A1","Jan",1.2290322580645161,1.8,1.2290322580645161,1.5]
["Feb",30,{"$f":"AVERAGE(L8,L23)","v":1.5058862433862434},{"$f":"MAX(M8,M23)","v":3.1},10,{"$f":"AVERAGE(N8,N23)","v":1.5058862433862434},{"$f":"MAX(O8,O23)","v":2.4},null,null,null,"Feb",1.7296296296296294,3.1,1.7296296296296294,2.4]
["Mar",30,1.3944600280504906,3.1,10,1.3944600280504906,2.2999999999999998,null,null,null,"Mar",1.869565217391304,3.1,1.869565217391304,2.2999999999999998,null,"Whole Installation table A5:G18:"]
["Apr",30,1.480059523809524,2.9,10,1.480059523809524,2.2000000000000002,null,null,null,"Apr",1.9142857142857144,2.9,1.9142857142857144,2.2000000000000002,null,"Mean: for 1/2 hourly and daily periods calculate mean of values across all operational combustion lines for the month"]
["May",30,2.0126152073732717,4.3,10,2.0126152073732717,3.5,null,null,null,"May",2.7645161290322573,4,2.7645161290322573,3.5]
["Jun",30,1.8605555555555555,6.3,10,1.8605555555555555,4.0999999999999996,null,null,null,"Jun",2.5433333333333334,4.5,2.5433333333333334,4.0999999999999996]
["Jul",30,1.6986175115207371,4.2,10,1.6986175115207371,3.9,null,null,null,"Jul",2.5714285714285707,4.2,2.5714285714285707,3.9,null,"Maximum: for 1/2 hourly and daily periods use the highest value across all operational combustion lines for the month"]
["Aug",30,1.3162402669632924,2.4,10,1.3162402669632924,1.9,null,null,null,"Aug",1.8034482758620687,2.4,1.8034482758620687,1.9]
["Sep",30,1.5442546583850931,3.3,10,1.5442546583850931,2.5,null,null,null,"Sep",2.1928571428571426,3.3,2.1928571428571426,2.5]
["Oct",30,1.060227272727273,8.9,10,1.060227272727273,1.8,null,null,null,"Oct",1.1250000000000002,2.2999999999999998,1.1250000000000002,1.4]
["Nov",30,0.91685185185185158,4,10,0.91685185185185158,1.9,null,null,null,"Nov",0.90370370370370379,2.2000000000000002,0.90370370370370379,1.5]
["Dec",30,1.1096774193548391,3,10,1.1096774193548391,2.1,null,null,null,"Dec",1.1935483870967745,3,1.1935483870967745,2.1]
[null,null,null,null,null,null,null,null,null,null,"Annual",{"$f":"AVERAGE(L7:L18)","v":1.8200290302237516},{"$f":"MAX(M7:M18)","v":4.5},{"$f":"AVERAGE(N7:N18)","v":1.8200290302237516},{"$f":"MAX(O7:O18)","v":4.0999999999999996}]
[]
[null,null,null,null,null,null,null,null,null,{"$f":"+A6","v":2021},"mg/Nm3","Monthly 1/2 hourly mean","Monthly 1/2 hourly maximum","Monthly daily mean","Monthly daily maximum"]
[null,null,null,null,null,null,null,null,null,"A2","Jan",1.17741935483871,1.7,1.17741935483871,1.6]
[null,null,null,null,null,null,null,null,null,null,"Feb",1.2821428571428577,2.2000000000000002,1.2821428571428577,1.7]
[null,null,null,null,null,null,null,null,null,null,"Mar",0.91935483870967727,1.4,0.91935483870967727,1.2]
[null,null,null,null,null,null,null,null,null,null,"Apr",1.0458333333333336,1.4,1.0458333333333336,1.1000000000000001]
[null,null,null,null,null,null,null,null,null,null,"May",1.2607142857142859,4.3,1.2607142857142859,1.6]
[null,null,null,null,null,null,null,null,null,null,"Jun",1.1777777777777776,6.3,1.1777777777777776,1.4]
[null,null,null,null,null,null,null,null,null,null,"Jul",0.82580645161290345,1.5,0.82580645161290345,1.1000000000000001]
[null,null,null,null,null,null,null,null,null,null,"Aug",0.82903225806451608,1.1000000000000001,0.82903225806451608,0.9]
[null,null,null,null,null,null,null,null,null,null,"Sep",0.89565217391304353,1.3,0.89565217391304353,1]
[null,null,null,null,null,null,null,null,null,null,"Oct",0.99545454545454592,8.9,0.99545454545454592,1.8]
[null,null,null,null,null,null,null,null,null,null,"Nov",0.92999999999999949,4,0.92999999999999949,1.9]
[null,null,null,null,null,null,null,null,null,null,"Dec",1.0258064516129037,1.3,1.0258064516129037,1.2]
[null,null,null,null,null,null,null,null,null,null,"Annual",{"$f":"AVERAGE(L22:L33)","v":1.0304161940145462},{"$f":"MAX(M22:M33)","v":8.9},{"$f":"AVERAGE(N22:N33)","v":1.0304161940145462},{"$f":"MAX(O22:O33)","v":1.9}]
[]
[null,null,null,null,null,null,null,null,null,{"$f":"+A6","v":2021},"mg/Nm3","Monthly 1/2 hourly mean","Monthly 1/2 hourly maximum","Monthly daily mean","Monthly daily maximum"]
[null,null,null,null,null,null,null,null,null,"A3","Jan"]
[null,null,null,null,null,null,null,null,null,null,"Feb"]
[null,null,null,null,null,null,null,null,null,null,"Mar"]
[null,null,null,null,null,null,null,null,null,null,"Apr"]
[null,null,null,null,null,null,null,null,null,null,"May"]
[null,null,null,null,null,null,null,null,null,null,"Jun"]
[null,null,null,null,null,null,null,null,null,null,"Jul"]
[null,null,null,null,null,null,null,null,null,null,"Aug"]
[null,null,null,null,null,null,null,null,null,null,"Sep"]
[null,null,null,null,null,null,null,null,null,null,"Oct"]
[null,null,null,null,null,null,null,null,null,null,"Nov"]
["Comments :",null,null,null,null,null,null,null,null,null,"Dec"]
[null,null,null,null,null,null,null,null,null,null,"Annual",{"$f":"AVERAGE(L37:L48)","v":{"$error":"#DIV/0!"}},{"$f":"MAX(M37:M48)","v":0},{"$f":"AVERAGE(N37:N48)","v":{"$error":"#DIV/0!"}},{"$f":"MAX(O37:O48)","v":0}]
[]
[null,null,null,null,null,null,null,null,null,{"$f":"+A6","v":2021},"mg/Nm3","Monthly 1/2 hourly mean","Monthly 1/2 hourly maximum","Monthly daily mean","Monthly daily maximum"]
[null,null,null,null,null,null,null,null,null,"A4","Jan"]
[null,null,null,null,null,null,null,null,null,null,"Feb"]
[null,null,null,null,null,null,null,null,null,null,"Mar"]
[null,null,null,null,null,null,null,null,null,null,"Apr"]
[null,null,null,null,null,null,null,null,null,null,"May"]
[null,null,null,null,null,null,null,null,null,null,"Jun"]
[null,null,null,null,null,null,null,null,null,null,"Jul"]
[null,null,null,null,null,null,null,null,null,null,"Aug"]
[null,null,null,null,null,null,null,null,null,null,"Sep"]
[null,null,null,null,null,null,null,null,null,null,"Oct"]
[null,null,null,null,null,null,null,null,null,null,"Nov"]
[null,null,null,null,null,null,null,null,null,null,"Dec"]
[null,null,null,null,null,null,null,null,null,null,"Annual",{"$f":"AVERAGE(L52:L63)","v":{"$error":"#DIV/0!"}},{"$f":"MAX(M52:M63)","v":0},{"$f":"AVERAGE(N52:N63)","v":{"$error":"#DIV/0!"}},{"$f":"MAX(O52:O63)","v":0}]
[]
[null,null,null,null,null,null,null,null,null,{"$f":"+A6","v":2021},"mg/Nm3","Monthly 1/2 hourly mean","Monthly 1/2 hourly maximum","Monthly daily mean","Monthly daily maximum"]
[null,null,null,null,null,null,null,null,null,"A5","Jan"]
[null,null,null,null,null,null,null,null,null,null,"Feb"]
[null,null,null,null,null,null,null,null,null,null,"Mar"]
[null,null,null,null,null,null,null,null,null,null,"Apr"]
[null,null,null,null,null,null,null,null,null,null,"May"]
[null,null,null,null,null,null,null,null,null,null,"Jun"]
[null,null,null,null,null,null,null,null,null,null,"Jul"]
[null,null,null,null,null,null,null,null,null,null,"Aug"]
[null,null,null,null,null,null,null,null,null,null,"Sep"]
[null,null,null,null,null,null,null,null,null,null,"Oct"]
[null,null,null,null,null,null,null,null,null,null,"Nov"]
[null,null,null,null,null,null,null,null,null,null,"Dec"]
[null,null,null,null,null,null,null,null,null,null,"Annual",{"$f":"AVERAGE(L67:L78)","v":{"$error":"#DIV/0!"}},{"$f":"MAX(M67:M78)","v":0},{"$f":"AVERAGE(N67:N78)","v":{"$error":"#DIV/0!"}},{"$f":"MAX(O67:O78)","v":0}]

{"sheet":"CO 95% 10 min","index":19,"n_rows":79,"n_cols":19,"rows_kept":79,"cut":false,"hidden":false,"merged":[[3,18,7,20],[9,18,11,20],[12,18,15,20],[66,10,78,10],[4,1,4,4],[4,5,4,7],[4,10,4,16],[6,10,18,10],[21,10,33,10],[36,10,48,10],[47,0,47,7],[48,0,51,7],[51,10,63,10]]}
[{"$f":"+'Cover Page'!$B$29","v":"Annual Performance Report 2021"},null,null,null,{"$f":"+'Cover Page'!$B$33","v":"SUEZ Suffolk Energy from Waste Facility"}]
[]
["Monitoring of Carbon Monoxide (10-minute avg)",null,null,null,"Whole Installation",null,null,"See  Notes in Cell S3",null,{"$f":"+A3","v":"Monitoring of Carbon Monoxide (10-minute avg)"},null,null,null,null,"Per Combustion Line",null,"Notes:",null,"Notes:"]
[null,null,null,null,null,null,null,null,null,null,null,null,null,null,null,null,null,null,"User to add logic to complete Whole installation, Table A5:H18. From the data in Per Combustion Line, Table K6:Q79, subject to No. of lines installed"]
["mg/Nm3","10-minute Reference Periods",null,null,null,"Daily Reference Periods"]
[{"$f":"+'Cover Page'!C39","v":2021},"95%ile 10-min avg CO ELV","95%ile 10-min avg maximum","Monthly CO 10-min avg mean","10-min avg maximum","Daily CO ELV","Monthly daily mean","Highest daily maximum",null,null,{"$f":"+A6","v":2021},"mg/Nm3","95%ile 10-min avg maximum","Monthly CO 10-min avg mean","10-min avg maximum","Monthly daily mean","Monthly daily maximum"]
["Jan",150,{"$f":"MAX(M7,M22)","v":4.533268928527832},{"$f":"AVERAGE(N7,N22)","v":1.4967741935483869},{"$f":"MAX(O7,O22)","v":356.3},50,{"$f":"AVERAGE(P7,P22)","v":1.4967741935483869},{"$f":"MAX(Q7,Q22)","v":6.3},null,null,"A1","Jan",4.533268928527832,2.0516129032258061,356.3,2.0516129032258061,6.3]
["Feb",{"$f":"+B7","v":150},{"$f":"MAX(M8,M23)","v":4.7356739044189453},{"$f":"AVERAGE(N8,N23)","v":1.3117063492063492},{"$f":"MAX(O8,O23)","v":380.5},{"$f":"+F7","v":50},{"$f":"AVERAGE(P8,P23)","v":1.3117063492063492},{"$f":"MAX(Q8,Q23)","v":5.5},null,null,null,"Feb",4.7356739044189453,1.7555555555555555,380.5,1.7555555555555555,5.5]
["Mar",{"$f":"+B8","v":150},33.32940673828125,1.2233520336605888,339.1,{"$f":"+F8","v":50},1.2233520336605888,3.5,null,null,null,"Mar",33.32940673828125,1.5434782608695652,339.1,1.5434782608695652,3.5,null,"Whole Installation table A5:H18:"]
["Apr",150,5.0250802040100098,0.88244047619047616,506.1,50,0.88244047619047616,6.2,null,null,null,"Apr",5.0250802040100098,0.81904761904761902,102.2,0.81904761904761902,1.4,null,"Mean: for 10-min and daily periods use average of all operational combustion lines."]
["May",150,13.734958648681641,0.82626728110599079,356.6,50,0.82626728110599079,3.3,null,null,null,"May",2.605820894241333,1.1096774193548389,301.10000000000002,1.1096774193548389,3.3]
["Jun",150,3.7649660110473633,0.9033333333333331,375.3,50,0.9033333333333331,5.5,null,null,null,"Jun",3.7649660110473633,1.3733333333333329,375.3,1.3733333333333329,5.5]
["Jul",150,119.87481689453125,1.4931451612903226,806.5,50,1.4931451612903226,15,null,null,null,"Jul",3.6334669589996338,1.5250000000000001,517.9,1.5250000000000001,7.6,null,"Maximum: for 10-min and daily periods use the highest of all operational combustion lines in any month."]
["Aug",150,4.3477191925048828,1.5923804226918796,508.8,50,1.5923804226918796,7.9,null,null,null,"Aug",4.3477191925048828,1.7137931034482756,432.9,1.7137931034482756,7.9]
["Sep",150,3.3268918991088867,1.2158385093167701,396.1,50,1.2158385093167701,6.9,null,null,null,"Sep",3.3268918991088867,1.4142857142857141,387.1,1.4142857142857141,6.9]
["Oct",150,9.2517595291137695,0.94025974025974035,380.7,50,0.94025974025974035,6,null,null,null,"Oct",9.2517595291137695,1.3714285714285714,380.7,1.3714285714285714,6]
["Nov",150,17.088544845581055,1.4216666666666669,368.5,50,1.4216666666666669,5.0999999999999996,null,null,null,"Nov",17.088544845581055,1.7999999999999998,368.5,1.7999999999999998,5.0999999999999996]
["Dec",150,4.0768899917602539,1.4580645161290322,412.2,50,1.4580645161290322,6.9,null,null,null,"Dec",3.9183990955352783,2.0903225806451613,412.2,2.0903225806451613,6.9]
[null,null,null,null,null,null,null,null,null,null,null,"Annual",{"$f":"AVERAGE(M7:M18)","v":7.9634165167808533},{"$f":"AVERAGE(N7:N18)","v":1.5472945884328702},{"$f":"MAX(O7:O18)","v":517.9},{"$f":"AVERAGE(P7:P18)","v":1.5472945884328702},{"$f":"MAX(Q7:Q18)","v":7.9}]
[]
[null,null,null,null,null,null,null,null,null,null,{"$f":"+A6","v":2021},"mg/Nm3","95%ile 10-min avg maximum","Monthly CO 10-min avg mean","10-min avg maximum","Monthly daily mean","Monthly daily maximum"]
[null,null,null,null,null,null,null,null,null,null,"A2","Jan",2.7782421112060547,0.94193548387096759,143.19999999999999,0.94193548387096759,2.8]
[null,null,null,null,null,null,null,null,null,null,null,"Feb",2.7801740169525146,0.86785714285714288,71.900000000000006,0.86785714285714288,1.9]
[null,null,null,null,null,null,null,null,null,null,null,"Mar",3.2949800491333008,0.90322580645161255,232.8,0.90322580645161255,3]
[null,null,null,null,null,null,null,null,null,null,null,"Apr",1.7420660257339478,0.9458333333333333,506.1,0.9458333333333333,6.2]
[null,null,null,null,null,null,null,null,null,null,null,"May",13.734958648681641,0.54285714285714282,356.6,0.54285714285714282,2.5]
[null,null,null,null,null,null,null,null,null,null,null,"Jun",2.1923670768737793,0.43333333333333335,279.39999999999998,0.43333333333333335,2.4]
[null,null,null,null,null,null,null,null,null,null,null,"Jul",119.87481689453125,1.4612903225806448,806.5,1.4612903225806448,15]
[null,null,null,null,null,null,null,null,null,null,null,"Aug",3.7622289657592773,1.4709677419354834,508.8,1.4709677419354834,5.4]
[null,null,null,null,null,null,null,null,null,null,null,"Sep",2.0098650455474854,1.017391304347826,396.1,1.017391304347826,4.5999999999999996]
[null,null,null,null,null,null,null,null,null,null,null,"Oct",4.3867831230163574,0.50909090909090915,132,0.50909090909090915,1.5]
[null,null,null,null,null,null,null,null,null,null,null,"Nov",2.9437060356140137,1.0433333333333337,347.9,1.0433333333333337,3.7]
[null,null,null,null,null,null,null,null,null,null,null,"Dec",4.0768899917602539,0.825806451612903,293.60000000000002,0.825806451612903,2.7]
[null,null,null,null,null,null,null,null,null,null,null,"Annual",{"$f":"AVERAGE(M22:M33)","v":13.631423165400824},{"$f":"AVERAGE(N22:N33)","v":0.91357685880038619},{"$f":"MAX(O22:O33)","v":806.5},{"$f":"AVERAGE(P22:P33)","v":0.91357685880038619},{"$f":"MAX(Q22:Q33)","v":15}]
[]
[null,null,null,null,null,null,null,null,null,null,{"$f":"+A6","v":2021},"mg/Nm3","95%ile 10-min avg maximum","Monthly CO 10-min avg mean","10-min avg maximum","Monthly daily mean","Monthly daily maximum"]
[null,null,null,null,null,null,null,null,null,null,"A3","Jan"]
[null,null,null,null,null,null,null,null,null,null,null,"Feb"]
[null,null,null,null,null,null,null,null,null,null,null,"Mar"]
[null,null,null,null,null,null,null,null,null,null,null,"Apr"]
[null,null,null,null,null,null,null,null,null,null,null,"May"]
[null,null,null,null,null,null,null,null,null,null,null,"Jun"]
[null,null,null,null,null,null,null,null,null,null,null,"Jul"]
[null,null,null,null,null,null,null,null,null,null,null,"Aug"]
[null,null,null,null,null,null,null,null,null,null,null,"Sep"]
[null,null,null,null,null,null,null,null,null,null,null,"Oct"]
[null,null,null,null,null,null,null,null,null,null,null,"Nov"]
["Comments :",null,null,null,null,null,null,null,null,null,null,"Dec"]
["Environment Agency explanatory note: The 10-minute average ELV is based on the “95th percentile”. In this case this means that 95% of the 10 minute averages in the relevant 24-hour period (i.e. 137) must be below 150 mg/Nm3, and 5% (i.e. 7) are allowed to be any value above 150 mg/Nm3. Whilst we expect operators to minimise CO emissions at all times, it is perfectly acceptable for the value of the maximum 10-minute average to be above 150 mg/Nm3, provided the 95th percentile ELV has been met for that period. ",null,null,null,null,null,null,null,null,null,null,"Annual",{"$f":"AVERAGE(M37:M48)","v":{"$error":"#DIV/0!"}},null,{"$f":"MAX(O37:O48)","v":0},{"$f":"AVERAGE(P37:P48)","v":{"$error":"#DIV/0!"}},{"$f":"MAX(Q37:Q48)","v":0}]
[]
[null,null,null,null,null,null,null,null,null,null,{"$f":"+A6","v":2021},"mg/Nm3","95%ile 10-min avg maximum","Monthly CO 10-min avg mean","10-min avg maximum","Monthly daily mean","Monthly daily maximum"]
[null,null,null,null,null,null,null,null,null,null,"A4","Jan"]
[null,null,null,null,null,null,null,null,null,null,null,"Feb"]
[null,null,null,null,null,null,null,null,null,null,null,"Mar"]
[null,null,null,null,null,null,null,null,null,null,null,"Apr"]
[null,null,null,null,null,null,null,null,null,null,null,"May"]
[null,null,null,null,null,null,null,null,null,null,null,"Jun"]
[null,null,null,null,null,null,null,null,null,null,null,"Jul"]
[null,null,null,null,null,null,null,null,null,null,null,"Aug"]
[null,null,null,null,null,null,null,null,null,null,null,"Sep"]
[null,null,null,null,null,null,null,null,null,null,null,"Oct"]
[null,null,null,null,null,null,null,null,null,null,null,"Nov"]
[null,null,null,null,null,null,null,null,null,null,null,"Dec"]
[null,null,null,null,null,null,null,null,null,null,null,"Annual",{"$f":"AVERAGE(M52:M63)","v":{"$error":"#DIV/0!"}},null,{"$f":"MAX(O52:O63)","v":0},{"$f":"AVERAGE(P52:P63)","v":{"$error":"#DIV/0!"}},{"$f":"MAX(Q52:Q63)","v":0}]
[]
[null,null,null,null,null,null,null,null,null,null,{"$f":"+A6","v":2021},"mg/Nm3","95%ile 10-min avg maximum","Monthly CO 10-min avg mean","10-min avg maximum","Monthly daily mean","Monthly daily maximum"]
[null,null,null,null,null,null,null,null,null,null,"A5","Jan"]
[null,null,null,null,null,null,null,null,null,null,null,"Feb"]
[null,null,null,null,null,null,null,null,null,null,null,"Mar"]
[null,null,null,null,null,null,null,null,null,null,null,"Apr"]
[null,null,null,null,null,null,null,null,null,null,null,"May"]
[null,null,null,null,null,null,null,null,null,null,null,"Jun"]
[null,null,null,null,null,null,null,null,null,null,null,"Jul"]
[null,null,null,null,null,null,null,null,null,null,null,"Aug"]
[null,null,null,null,null,null,null,null,null,null,null,"Sep"]
[null,null,null,null,null,null,null,null,null,null,null,"Oct"]
[null,null,null,null,null,null,null,null,null,null,null,"Nov"]
[null,null,null,null,null,null,null,null,null,null,null,"Dec"]
[null,null,null,null,null,null,null,null,null,null,null,"Annual",{"$f":"AVERAGE(M67:M78)","v":{"$error":"#DIV/0!"}},null,{"$f":"MAX(O67:O78)","v":0},{"$f":"AVERAGE(P67:P78)","v":{"$error":"#DIV/0!"}},{"$f":"MAX(Q67:Q78)","v":0}]